{"text_format":"1","workbook":"xlsx","n_sheets":14,"sheets":["TEMPLATE Zahlungsantrag","Zahlungsantrag LEW14-20","TABLE Fördergeber","TEMPLATE Auswahl Belegaufst.","Auswahl Belegaufstellungen","Übersicht","TEMPLATE Übersicht","TEMPLATE Invest & Sachkosten","TEMPLATE Standardkosten","TEMPLATE Unbare Sachleistungen","TEMPLATE Personalkosten","Notizen","TEMPLATE Notizen","TABLE Gehaltsgrenzen"],"not_rendered":{"charts":0,"images":26,"macros":1,"external_links":0,"defined_names":609,"comments":4,"pivot_tables":0},"unopened":[],"bounds":{"document_bytes":16777216,"sheet_cells":100000,"rows_first":2000,"rows_last":500,"rows_between":2000,"halvings":0,"cell_chars":16384,"cell_head_chars":4096},"cells_cut":0,"cells_raw":0,"read":"whole","date_system":"1900"}

{"sheet":"TEMPLATE Zahlungsantrag","index":0,"n_rows":235,"n_cols":40,"rows_kept":235,"cut":false,"hidden":true,"merged":[[128,1,128,38],[6,0,6,38],[7,0,7,38],[8,0,8,38],[10,0,10,22],[10,24,10,38],[0,0,4,8],[0,9,0,12],[0,13,4,38],[1,9,1,12],[2,9,2,12],[3,9,3,12],[4,9,4,12],[30,0,30,38],[31,1,31,7],[31,8,31,24],[31,26,31,30],[26,0,26,38],[28,0,28,11],[11,0,11,22],[11,24,17,38],[13,0,13,15],[17,0,17,13],[17,15,17,17],[28,12,28,21],[28,23,28,30],[28,31,28,38],[21,0,21,38],[22,0,22,38],[24,0,24,11],[24,12,24,38],[19,0,19,38],[15,0,15,7],[15,8,15,10],[15,13,15,20],[36,1,36,7],[36,8,36,24],[36,26,36,30],[33,0,33,38],[34,1,34,7],[34,8,34,24],[34,26,34,30],[41,8,41,24],[41,26,41,31],[41,32,41,38],[38,0,38,38],[39,1,39,7],[39,8,39,38],[41,1,41,7],[66,5,66,38],[60,0,60,11],[60,12,60,38],[54,0,54,11],[50,0,50,7],[50,8,50,24],[50,26,50,30],[52,0,52,11],[52,12,52,38],[58,0,58,11],[58,12,58,38],[42,0,43,38],[44,1,44,7],[44,8,44,38],[56,12,56,38],[48,26,48,30],[56,0,56,11],[46,1,46,7],[46,8,46,38],[48,0,48,7],[48,8,48,24],[68,22,68,30],[82,0,82,24],[80,29,80,32],[76,29,76,34],[80,0,80,24],[80,26,80,27],[76,8,76,9],[76,17,76,18],[54,12,54,38],[72,0,72,38],[74,2,74,9],[74,11,74,18],[68,31,68,38],[70,0,70,38],[74,20,74,27],[74,29,74,36],[68,0,68,6],[68,7,68,20],[62,0,62,38],[66,0,66,4],[64,0,64,3],[64,4,64,24],[64,26,64,29],[64,30,64,38],[76,35,76,36],[78,0,78,19],[78,22,78,23],[78,24,78,28],[78,30,78,31],[78,32,78,36],[76,11,76,16],[76,26,76,27],[76,20,76,25],[76,2,76,7],[88,30,88,31],[88,35,88,36],[90,0,90,24],[90,26,90,27],[88,0,88,24],[88,26,88,27],[80,34,80,37],[86,0,86,24],[86,26,86,27],[86,30,86,31],[82,35,82,36],[82,30,82,31],[86,35,86,36],[84,0,84,24],[84,26,84,27],[84,30,84,31],[84,35,84,36],[82,26,82,27],[94,30,94,31],[94,35,94,36],[92,0,92,24],[92,26,92,27],[90,30,90,31],[90,35,90,36],[92,30,92,31],[92,35,92,36],[94,0,94,24],[94,26,94,27],[100,0,100,24],[100,26,100,27],[102,30,102,31],[102,35,102,36],[102,0,102,24],[102,26,102,27],[100,30,100,31],[100,35,100,36],[96,0,96,6],[96,7,96,24],[98,29,98,32],[98,34,98,37],[98,0,98,24],[98,26,98,27],[104,0,104,24],[104,26,104,27],[104,30,104,31],[104,35,104,36],[121,0,121,6],[121,7,121,24],[110,0,110,24],[110,26,110,27],[113,0,115,24],[114,26,115,37],[110,28,110,37],[112,0,112,38],[117,28,117,35],[119,0,119,6],[133,0,133,6],[133,8,133,22],[133,24,133,38],[130,0,130,38],[132,0,132,6],[132,8,132,22],[132,24,132,38],[123,0,123,38],[106,0,106,24],[106,26,106,27],[106,30,106,31],[106,35,106,36],[117,7,117,24],[108,0,108,6],[108,7,108,24],[121,28,121,35],[117,0,117,6],[119,7,119,24],[119,28,119,35],[129,1,129,38],[124,1,124,38],[125,1,125,38],[126,1,126,38],[127,1,127,38]]}
[null,null,null,null,null,null,null,null,null,"Agrarmarkt Austria"]
[null,null,null,null,null,null,null,null,null,"Dresdner Straße 70",null,null,null,null,null,null,null,null,null,null,null,null,null,null,null,null,null,null,null,null,null,null,null,null,null,null,null,null,null,{"$f":"VLOOKUP(PaymAppl_IntentCode,ProjectTypeSponsors,2)","v":"BMNT/LE1420/LD/EU"}]
[null,null,null,null,null,null,null,null,null,"A-1200 Wien",null,null,null,null,null,null,null,null,null,null,null,null,null,null,null,null,null,null,null,null,null,null,null,null,null,null,null,null,null,"BMNT/LE1420/LD/EU"]
[null,null,null,null,null,null,null,null,null,"www.ama.at",null,null,null,null,null,null,null,null,null,null,null,null,null,null,null,null,null,null,null,null,null,null,null,null,null,null,null,null,null,3]
[null,null,null,null,null,null,null,null,null,"DVR: 0719838",null,null,null,null,null,null,null,null,null,null,null,null,null,null,null,null,null,null,null,null,null,null,null,null,null,null,null,null,null,"Logo-NOe"]
[]
["Zahlungsantrag"]
["zur Auszahlung einer Förderung eines Vorhabens  "]
["im Rahmen des Österreichischen Programms für ländliche Entwicklung 2014 - 2020"]
[]
["Antragsnummer des betroffenen Vorhabens",null,null,null,null,null,null,null,null,null,null,null,null,null,null,null,null,null,null,null,null,null,null,null,"Eingangsvermerk (Einreich-/Bewilligende Stelle)"]
[]
[]
["Bei vorgelegter Abrechnung handelt es sich um die"]
[]
[null,null,null,null,null,null,null,null,null,null,null,null,null,null,null,null,null,null,null,null,null,null,null,null,null,null,null,null,null,null,null,null,null,null,null,null,null,null,null,1]
[]
["Der Gebietskörperschaftsanteil beträgt in %",null,null,null,null,null,null,null,null,null,null,null,null,null,null,null,null,null,null,null,null,null,null,null,null,null,null,null,null,null,null,null,null,null,null,null,null,null,null,{"$f":"IF(PaymAppl_PartialPaymSelect=1,IF(TRIM(PaymAppl_PartialPaymID)=\"\",\"\",\" / TZ \" & TRIM(PaymAppl_PartialPaymID)),\" / EndZ\")","v":""}]
[]
["Vorhaben"]
[]
["Code / Vorhabensart"]
["Bitte auswählen"]
[]
["Kurzbezeichnung des Vorhabens:"]
[]
["Angaben zum Förderungswerber/zur Förderungswerberin ",null,null,null,null,null,null,null,null,null,null,null,null,null,null,null,null,null,null,null,null,null,null,null,null,null,null,null,null,null,null,null,null,null,null,null,null,null,null,1]
[]
["Betriebs- bzw. Klientennummer:",null,null,null,null,null,null,null,null,null,null,null,null,null,null,null,null,null,null,null,null,null,null,"Vorsteuerabzugsberechtigt",null,null,null,null,null,null,null,null,null,null,null,null,null,null,null,{"$f":"IF(AN27=1,\"Ja\",\"Nein\")","v":"Ja"}]
[]
[null,null,null,null,null,null,null,null,null,null,null,null,null,null,null,null,null,null,null,null,null,null,null,null,null,null,null,null,null,null,null,null,null,null,null,null,null,null,null,1]
[null,"Titel, Name, Vorname",null,null,null,null,null,null,null,null,null,null,null,null,null,null,null,null,null,null,null,null,null,null,null,null,"Geburtsdatum",null,null,null,null,null,null,null,null,null,null,null,null,{"$f":"TRIM(PaymAppl_IndividualName)","v":""}]
[]
[]
[null,"Titel, Name, Vorname",null,null,null,null,null,null,null,null,null,null,null,null,null,null,null,null,null,null,null,null,null,null,null,null,"Geburtsdatum",null,null,null,null,null,null,null,null,null,null,null,null,{"$f":"IF(TRIM(PaymAppl_CoupleNameA)=\"\",\"???\",TRIM(PaymAppl_CoupleNameA))","v":"???"}]
[]
[null,"Titel, Name, Vorname",null,null,null,null,null,null,null,null,null,null,null,null,null,null,null,null,null,null,null,null,null,null,null,null,"Geburtsdatum",null,null,null,null,null,null,null,null,null,null,null,null,{"$f":"IF(TRIM(PaymAppl_CoupleNameB)=\"\",\"???\",TRIM(PaymAppl_CoupleNameB))","v":"???"}]
[]
["  "]
[null,"Name/Unternehmen",null,null,null,null,null,null,null,null,null,null,null,null,null,null,null,null,null,null,null,null,null,null,null,null,null,null,null,null,null,null,null,null,null,null,null,null,null,{"$f":"TRIM(PaymAppl_LegalEntityName)","v":""}]
[]
[null,"Gesellschaftsform",null,null,null,null,null,null,null,null,null,null,null,null,null,null,null,null,null,null,null,null,null,null,null,null,"ZVR/FB-Nr./GKZ"]
[]
[]
[null,"Name",null,null,null,null,null,null,null,null,null,null,null,null,null,null,null,null,null,null,null,null,null,null,null,null,null,null,null,null,null,null,null,null,null,null,null,null,null,{"$f":"TRIM(PaymAppl_PersonGroupName)","v":""}]
[]
[null,"Gesellschaftsform"]
[]
["Vertretungsbefugte/r",null,null,null,null,null,null,null,null,null,null,null,null,null,null,null,null,null,null,null,null,null,null,null,null,null,"Geburtsdatum"]
[]
["Vertretungsbefugte/r",null,null,null,null,null,null,null,null,null,null,null,null,null,null,null,null,null,null,null,null,null,null,null,null,null,"Geburtsdatum"]
[]
["Zustelladresse: Straße, Hausnr."]
[]
["Zustelladresse: PLZ, Ort"]
[]
["Betriebsadresse: Straße, Hausnr."]
[]
["Betriebsadresse: PLZ, Ort"]
[]
["Mobil-,Telefonnr./Email-/Internetadresse"]
[]
["Bankverbindung"]
[]
["IBAN",null,null,null,null,null,null,null,null,null,null,null,null,null,null,null,null,null,null,null,null,null,null,null,null,null,"BIC"]
[]
["ACHTUNG:\n",null,null,null,null,"Alle Zahlungen werden auf die letzte von Ihnen bekanntgegebene Bankverbindung überwiesen.\nIhr Auszahlungskonto können Sie jederzeit im eAMA unter KUNDENDATEN einsehen und ändern."]
[]
["Förderungswerber/in",null,null,null,null,null,null,{"$f":"IF(AN31=1,AN32,IF(AN31=2,AN35 & \"/\" & AN37,IF(AN31=3,AN40,IF(AN31=4,AN45,\"???\"))))","v":""},null,null,null,null,null,null,null,null,null,null,null,null,null,null,"Betriebs-/Klientennummer",null,null,null,null,null,null,null,null,{"$f":"IF(ISBLANK(M29),\"\",M29)","v":""}]
[]
["Zahlungsantrag (Seite 2)"]
[]
["eingereichte Kosten"]
[]
[null,null,"Belegbetrag brutto",null,null,null,null,null,null,null,null,"Belegbetrag netto",null,null,null,null,null,null,null,null,"eingereichte Kosten",null,null,null,null,null,null,null,null,"Einnahmen"]
[]
[null,null,null,null,null,null,null,null,"€",null,null,null,null,null,null,null,null,"€",null,null,null,null,null,null,null,null,"€",null,null,null,null,null,null,null,null,"€"]
[]
["genehmigter Zeitraum für die Kostenanerkennung",null,null,null,null,null,null,null,null,null,null,null,null,null,null,null,null,null,null,null,null,null,"von",null,null,null,null,null,null,null,"bis"]
[]
["Allgemeine Beilagen",null,null,null,null,null,null,null,null,null,null,null,null,null,null,null,null,null,null,null,null,null,null,null,null,null,"liegt \nbei",null,null,"wird \nnachgereicht",null,null,null,null,"nicht \nerforderlich"]
[]
["Abrechnungsbelege (Rechnungen, Honorarnoten, Jahreslohnkonten etc.)"]
[]
["Belegaufstellung - Investitionen und Sachaufwand"]
[]
["Belegaufstellung - unbare Eigenleistungen (=unbare Sachleistungen) "]
[]
["Belegaufstellung Personalkosten"]
[]
["Zeitaufzeichnungen, Tätigkeitsbeschreibungen"]
[]
["Zahlungsnachweis/e"]
[]
["Nachweis über die Einhaltung der Publizitätskriterien"]
[]
["Sonstige Beilage(n):"]
[]
["Vorhabensspezifische Beilagen, die spätestens mit der Endabrechnung vorgelegt werden  müssen: ",null,null,null,null,null,null,null,null,null,null,null,null,null,null,null,null,null,null,null,null,null,null,null,null,null,"liegt \nbei",null,null,"wird \nnachgereicht",null,null,null,null,"nicht \nerforderlich"]
[]
["Benutzungsbewilligung"]
[]
["Endbericht"]
[]
["Versichungsnachweis bei Investitionen in unbewegl. Investitionsgegenstände"]
[]
["Evaluierungsdatenblatt"]
[]
["Sonstige Beilage(n):"]
[]
["Angaben zu anderen Förderungen/Zuschüssen",null,null,null,null,null,null,null,null,null,null,null,null,null,null,null,null,null,null,null,null,null,null,null,null,null,null,null,"Keine weitere/n Förderung/en \nbzw. Zuschüsse"]
[]
["Im Rahmen d. Projektes wurde bei folgenden anderen Förderstellen um eine Förderung bzw. einen Zuschuss angesucht:"]
["Geben Sie hier die entsprechende Stelle sowie die/den beantragte(n)/genehmigten(n)/erhaltene(n) Förderung/Zuschuss an!"]
[null,null,null,null,null,null,null,null,null,null,null,null,null,null,null,null,null,null,null,null,null,null,null,null,null,null,"Förderung/Zuschuss im Ausmaß von "]
[]
[]
["Bund:",null,null,null,null,null,null,null,null,null,null,null,null,null,null,null,null,null,null,null,null,null,null,null,null,null,null,null,null,null,null,null,null,null,null,null,"€"]
[]
["Land:",null,null,null,null,null,null,null,null,null,null,null,null,null,null,null,null,null,null,null,null,null,null,null,null,null,null,null,null,null,null,null,null,null,null,null,"€"]
[]
["Gemeinde/n:",null,null,null,null,null,null,null,null,null,null,null,null,null,null,null,null,null,null,null,null,null,null,null,null,null,null,null,null,null,null,null,null,null,null,null,"€"]
[]
["Mit meiner Unterschrift bestätige ich, "]
[null,"-) dass ich alle Angaben im Zahlungsantrag und sämtlichen Beilagen mit bestem Wissen gemacht habe,"]
[null,"-) Abrechnungsbelege nicht in unzulässiger Weise zur Abrechnung einer bei einer anderen Abwicklungsstelle\n    beantragten Förderung eingebracht habe oder einreichen werde (unzulässige Mehrfachförderung)"]
[null,"-) die Beantragung einer mit der LE-Projektförderung kumulierbaren Förderung bei einer anderen Förderungs-\n    abwicklungsstelle der Bewilligenden Stelle gemeldet habe oder melden werde,"]
[null,"-) allen Verpflichtungen gegenüber der Bewilligenden Stelle (z.B. Meldeverpflichtung) nachgekommen bin,\n"]
[null,"-) dass alle Personen, deren Daten im Rahmen dieses Zahlungsantrages offengelegt wurden, von mir darüber\n    informiert wurden, dass eine Verarbeitung ihrer Daten durch die Zahlstelle und Bewilligende Stelle für Zwecke"]
[null,"    der Abwicklung und Kontrolle der Förderung erfolgt."]
["und ersuche um Auszahlung des entsprechenden Förderungsbetrages."]
[]
[]
["Ort, Datum",null,null,null,null,null,null,null,"Name in Blockbuchstaben",null,null,null,null,null,null,null,null,null,null,null,null,null,null,null,"Unterschrift bzw. firmenmäßige Zeichnung"]
[null,null,null,null,null,null,null,null,null,null,null,null,null,null,null,null,null,null,null,null,null,null,null,null,null,null,null,null,null,null,null,null,null,null,null,null,null,null,"RL/AMA v469.11 / Feb. 2019"]
[]
[]
[]
["Liste verfügbarer Vorhabensarten (für Pop-Up-Menu)"]
["Bitte auswählen"]
["M 1 A) - Wissenstransfer und Informationsmaßnahmen in der Land- und Forstwirtschaft - Landwirtschaft"]
["M 1 B) - Wissenstransfer und Informationsmaßnahmen in der Land- und Forstwirtschaft - Forstwirtschaft"]
[" - "]
["2.1.1. A) - Inanspruchnahme von Beratungsleistungen - Landwirtschaft"]
["2.1.1. B) - Inanspruchnahme von Beratungsleistungen - Forstwirtschaft"]
["2.1.1. C) - Inanspruchnahme von Beratungsleistungen - KMU"]
["2.3.1. - Ausbildung von BeraterInnen"]
[" - "]
["3.1.1. - Teilnahme der BewirtschafterInnen landwirtschaftlicher Betriebe an Lebensmittelqualitätsregelungen"]
["3.2.1. - Informations- und Absatzförderungsmaßnahmen"]
[" - "]
["4.1.1. - Investitionen in die landwirtschaftliche Erzeugung"]
["4.2.1. A) - Verarbeitung, Vermarktung und Entwicklung landwirtschaftlicher Erzeugnisse (Bewilligung AWS)"]
["4.2.1. B) - Verarbeitung, Vermarktung und Entwicklung landwirtschaftlicher Erzeugnisse (Bewilligung Bundesländer)"]
["4.3.1. - Investitionen in überbetriebliche Bewässerungsinfrastruktur"]
["4.3.2. - Investitionen in die Infrastruktur für die Entwicklung, Modernisierung und Anpassung der Forstwirtschaft"]
["4.4.1. - Nichtproduktive Investitionen – Ökologische Verbesserung von Gewässern in landwirtschaftlich geprägten Regionen"]
["4.4.2. - Nichtproduktive Investitionen – Investitionen zur Stabilisierung von Rutschungen"]
["4.4.3. - Nichtproduktive Investitionen – Ökologische Agrarinfrastruktur zur Flurentwicklung"]
[" - "]
["6.1.1. - Existenzgründungsbeihilfen für JunglandwirtInnen"]
["6.4.1. - Diversifizierung hin zu nichtlandwirtschaftlichen Tätigkeiten"]
["6.4.2. - Diversifizierung lw. und fw. Betriebe durch Energie aus nachwachsenden Rohstoffen sowie Energiedienstleistungen"]
["6.4.3. - Photovoltaik in der Landwirtschaft"]
["6.4.4. - Gründung von innovativen Kleinunternehmen im ländlichen Raum"]
["6.4.5. - Förderung von Nahversorgungsbetrieben einschließlich gewerblicher Beherbergungs- und Gastronomiebetriebe"]
[" - "]
["7.1.1. A) - Pläne und Entwicklungskonzepte zur Erhaltung des natürlichen Erbes - Naturschutz - Bund"]
["7.1.1. A) - Pläne und Entwicklungskonzepte zur Erhaltung des natürlichen Erbes - Naturschutz - Länder"]
["7.1.1. B) - Pläne und Entwicklungskonzepte zur Erhaltung des natürlichen Erbes - Nationalparks"]
["7.1.2. - Pläne und Entwicklungskonzepte zur Dorferneuerung"]
["7.1.3. - Lokale Agenda 21 - Bund"]
["7.1.3. - Lokale Agenda 21 - Länder"]
["7.2.1. - Ländliche Verkehrsinfrastruktur"]
["7.2.2. - Investitionen in erneuerbare Energien"]
["7.2.3. - Umsetzung von Klima- und Energieprojekten auf lokaler Ebene"]
["7.3.1. - Breitbandinfrastruktur in ländlichen Gebieten"]
["7.4.1. A) - Soziale Angelegenheiten - BMASK"]
["7.4.1. B) - Soziale Angelegenheiten - BMG"]
["7.4.2. - Klimafreundliche Mobilitätslösungen (klimaaktiv mobil)"]
["7.5.1. A) - Investitionen in kleine touristische Infrastruktur - BMNT"]
["7.5.1. B) - Investitionen in kleine touristische Infrastruktur - Forst"]
["7.5.1. C) - Investitionen in kleine touristische Infrastruktur - Länder"]
["7.6.1. A) - Studien und Investitionen zur Erhaltung, Wiederherstellung und Verbesserung des natürlichen Erbes - Naturschutz - Bund "]
["7.6.1. A) - Studien und Investitionen zur Erhaltung, Wiederherstellung und Verbesserung des natürlichen Erbes - Naturschutz - Länder"]
["7.6.1. B) - Studien und Investitionen zur Erhaltung, Wiederherstellung und Verbesserung des natürlichen Erbes - Nationalparks"]
["7.6.1. C) - Studien und Investitionen zur Erhaltung, Wiederherstellung und Verbesserung des natürlichen Erbes - Forst"]
["7.6.2. - Umsetzung von Plänen zur Dorferneuerung und Gemeindeentwicklung"]
["7.6.3. - Erhaltung und Entwicklung der Kulturlandschaft"]
["7.6.4. - Überbetriebliche Maßnahmen für die Bereiche Wald und Schutz vor Naturgefahren"]
["7.6.5. - Stärkung der Potenziale des alpinen ländlichen Raums"]
[" - "]
["8.1.1. - Aufforstung und Anlage von Wäldern"]
["8.4.1. - Vorbeugung von Schäden und Wiederherstellung von Wäldern nach Naturkatastrophen und Katastrophenereignissen - Forstschutz"]
["8.5.1. - Investitionen zur Stärkung von Resistenz und ökologischem Wert des Waldes - Öffentlicher Wert & Schutz vor Naturgefahren"]
["8.5.2. - Investitionen zur Stärkung von Resistenz und ökologischem Wert des Waldes - Genetische Ressourcen"]
["8.5.3. - Investitionen zur Stärkung des ökologischen Werts der Waldökosysteme - Wald-Ökologie-Programm "]
["8.6.1. - Investitionen in Forsttechniken, Verarbeitung, Mobilisierung und Vermarktung forstwirtschaftlicher Erzeugnisse"]
["8.6.2. - Erstellung von waldbezogenen Plänen auf betrieblicher Ebene"]
[" - "]
["15.1.1. - Erhaltung von ökologisch wertvollen/seltenen Waldflächen /-gesellschaften"]
["15.2.1. - Erhaltung und Verbesserung der genetischen Ressourcen des Waldes"]
[" - "]
["16.01.1. - Unterstützung beim Aufbau & Betrieb operationeller Gruppen der EIP für lw. Produktivität & Nachhaltigkeit"]
["16.02.1. - Unterstützung bei der Entwicklung neuer Erzeugnisse, Verfahren & Technologien der Land-, Ernährungs- & Forstwirtschaft"]
["16.02.2. A) - Unterstützung bei der Entwicklung von innovativen Pilotprojekten im Tourismus - BMNT"]
["16.02.2. B) - Unterstützung bei der Entwicklung von innovativen Pilotprojekten im Tourismus - Länder"]
["16.03.1. A) - Zusammenarbeit von kleinen WirtschaftsteilnehmerInnen - Arbeitsabläufe, Ressourcennutzung und Tourismusdienstleistungen "]
["16.03.1. A) - Zusammenarbeit von kleinen WirtschaftsteilnehmerInnen - Arbeitsabläufe, Ressourcennutzung und Tourismusdienstleistungen - BMNT"]
["16.03.1. B) - Zusammenarbeit von kleinen WirtschaftsteilnehmerInnen - Arbeitsabläufe, Ressourcennutzung und Tourismusdienstleistungen - BMNT"]
["16.03.1. C) - Zusammenarbeit von kleinen WirtschaftsteilnehmerInnen - Arbeitsabläufe, Ressourcennutzung und Tourismusdienstleistungen - Länder"]
["16.03.2. - Zusammenarbeit von Kleinstunternehmen im ländlichen Raum"]
["16.04.1. - Schaffung und Entwicklung von kurzen Versorgungsketten und lokalen Märkten sowie unterstützende Absatzförderung "]
["16.05.1. - Stärkung der horizontalen und vertikalen Zusammenarbeit zwischen AkteurInnen im forst- und wasserwirtschaftlichen Sektor"]
["16.05.2. A) - Stärkung der Zusammenarbeit von AkteurInnen und Strukturen zur Erhaltung des natürlichen Erbes & des Umweltschutzes - Naturschutz"]
["16.05.2. A) - Stärkung der Zusammenarbeit von AkteurInnen und Strukturen zur Erhaltung des natürlichen Erbes & des Umweltschutzes - Naturschutz - Länder"]
["16.05.2. B) - Stärkung der Zusammenarbeit von AkteurInnen und Strukturen zur Erhaltung des natürlichen Erbes & des Umweltschutzes - Umweltschutz"]
["16.05.2. C) - Stärkung der Zusammenarbeit von AkteurInnen und Strukturen zur Erhaltung des natürlichen Erbes & des Umweltschutzes - Nationalparks"]
["16.08.1. - Waldbezogene Pläne auf überbetrieblicher Ebene"]
["16.09.1. - Förderung horizontaler & vertikaler Zusammenarbeit lw. & fw. AkteurInnen zur Schaffung & Entwicklung v. Sozialleistungen - BMNT"]
["16.10.1. - Einrichtung und Betrieb von Clustern - BMNT"]
["16.10.2. - Einrichtung und Betrieb von Netzwerken - BMNT"]
["16.10.3. - Zusammenarbeit: Erzeugergemeinschaften /-organisationen, Genossenschaften und Branchenverbände - BMNT"]
[" - "]
["19.1.1. - Erstellung der lokalen Entwicklungsstrategie - Länder"]
["19.1.1. - Erstellung der lokalen Entwicklungsstrategie"]
["19.2.1. - Umsetzung der lokalen Entwicklungsstrategie - Länder"]
["19.2.1. - Umsetzung der lokalen Entwicklungsstrategie"]
["19.3.1. - Umsetzung von nationalen oder transnationalen Kooperationsprojekten - Länder"]
["19.3.1. - Umsetzung von nationalen oder transnationalen Kooperationsprojekten"]
["19.4.1. - Laufende Kosten des LAG-Managements und Sensibilisierung - Länder"]
["19.4.1. - Laufende Kosten des LAG-Managements und Sensibilisierung"]
[" - "]
["20.1. - Technische Hilfe (außer Netzwerk)"]
["20.2. - Technische Hilfe - Netzwerk"]

{"sheet":"Zahlungsantrag LEW14-20","index":1,"n_rows":235,"n_cols":40,"rows_kept":235,"cut":false,"hidden":false,"merged":[[0,0,4,8],[0,9,0,12],[0,13,4,38],[1,9,1,12],[2,9,2,12],[3,9,3,12],[4,9,4,12],[15,13,15,20],[17,0,17,13],[17,15,17,17],[19,0,19,38],[21,0,21,38],[22,0,22,38],[6,0,6,38],[7,0,7,38],[8,0,8,38],[10,0,10,22],[10,24,10,38],[11,0,11,22],[11,24,17,38],[13,0,13,15],[15,0,15,7],[15,8,15,10],[30,0,30,38],[31,1,31,7],[31,8,31,24],[31,26,31,30],[33,0,33,38],[34,1,34,7],[34,8,34,24],[34,26,34,30],[24,0,24,11],[24,12,24,38],[26,0,26,38],[28,0,28,11],[28,12,28,21],[28,23,28,30],[28,31,28,38],[41,1,41,7],[41,8,41,24],[41,26,41,31],[41,32,41,38],[42,0,43,38],[44,1,44,7],[44,8,44,38],[36,1,36,7],[36,8,36,24],[36,26,36,30],[38,0,38,38],[39,1,39,7],[39,8,39,38],[52,0,52,11],[52,12,52,38],[54,0,54,11],[54,12,54,38],[56,0,56,11],[56,12,56,38],[46,1,46,7],[46,8,46,38],[48,0,48,7],[48,8,48,24],[48,26,48,30],[50,0,50,7],[50,8,50,24],[50,26,50,30],[58,0,58,11],[58,12,58,38],[60,0,60,11],[60,12,60,38],[62,0,62,38],[64,0,64,3],[64,4,64,24],[64,26,64,29],[64,30,64,38],[70,0,70,38],[72,0,72,38],[74,2,74,9],[74,11,74,18],[74,20,74,27],[74,29,74,36],[66,0,66,4],[66,5,66,38],[68,0,68,6],[68,7,68,20],[68,22,68,30],[68,31,68,38],[76,29,76,34],[76,35,76,36],[78,0,78,19],[78,22,78,23],[78,24,78,28],[78,30,78,31],[78,32,78,36],[76,2,76,7],[76,8,76,9],[76,11,76,16],[76,17,76,18],[76,20,76,25],[76,26,76,27],[84,0,84,24],[84,26,84,27],[84,30,84,31],[84,35,84,36],[86,0,86,24],[86,26,86,27],[86,30,86,31],[86,35,86,36],[80,0,80,24],[80,26,80,27],[80,29,80,32],[80,34,80,37],[82,0,82,24],[82,26,82,27],[82,30,82,31],[82,35,82,36],[92,0,92,24],[92,26,92,27],[92,30,92,31],[92,35,92,36],[94,0,94,24],[94,26,94,27],[94,30,94,31],[94,35,94,36],[88,0,88,24],[88,26,88,27],[88,30,88,31],[88,35,88,36],[90,0,90,24],[90,26,90,27],[90,30,90,31],[90,35,90,36],[100,0,100,24],[100,26,100,27],[100,30,100,31],[100,35,100,36],[102,0,102,24],[102,26,102,27],[102,30,102,31],[102,35,102,36],[96,0,96,6],[96,7,96,24],[98,0,98,24],[98,26,98,27],[98,29,98,32],[98,34,98,37],[108,0,108,6],[108,7,108,24],[110,0,110,24],[110,26,110,27],[110,28,110,37],[112,0,112,38],[104,0,104,24],[104,26,104,27],[104,30,104,31],[104,35,104,36],[106,0,106,24],[106,26,106,27],[106,30,106,31],[106,35,106,36],[121,0,121,6],[121,7,121,24],[121,28,121,35],[123,0,123,38],[124,1,124,38],[125,1,125,38],[113,0,115,24],[114,26,115,37],[117,0,117,6],[117,7,117,24],[117,28,117,35],[119,0,119,6],[119,7,119,24],[119,28,119,35],[133,0,133,6],[133,8,133,22],[133,24,133,38],[126,1,126,38],[127,1,127,38],[128,1,128,38],[129,1,129,38],[130,0,130,38],[132,0,132,6],[132,8,132,22],[132,24,132,38]]}
[null,null,null,null,null,null,null,null,null,"Agrarmarkt Austria"]
[null,null,null,null,null,null,null,null,null,"Dresdner Straße 70",null,null,null,null,null,null,null,null,null,null,null,null,null,null,null,null,null,null,null,null,null,null,null,null,null,null,null,null,null,{"$f":"VLOOKUP(PaymAppl_IntentCode,ProjectTypeSponsors,2)","v":"BMNT/LE1420/LD/EU"}]
[null,null,null,null,null,null,null,null,null,"A-1200 Wien",null,null,null,null,null,null,null,null,null,null,null,null,null,null,null,null,null,null,null,null,null,null,null,null,null,null,null,null,null,"BMNT/LE1420/LD/EU"]
[null,null,null,null,null,null,null,null,null,"www.ama.at",null,null,null,null,null,null,null,null,null,null,null,null,null,null,null,null,null,null,null,null,null,null,null,null,null,null,null,null,null,3]
[null,null,null,null,null,null,null,null,null,"DVR: 0719838",null,null,null,null,null,null,null,null,null,null,null,null,null,null,null,null,null,null,null,null,null,null,null,null,null,null,null,null,null,"Logo-NOe"]
[]
["Zahlungsantrag"]
["zur Auszahlung einer Förderung eines Vorhabens  "]
["im Rahmen des Österreichischen Programms für ländliche Entwicklung 2014 - 2020"]
[]
["Antragsnummer des betroffenen Vorhabens",null,null,null,null,null,null,null,null,null,null,null,null,null,null,null,null,null,null,null,null,null,null,null,"Eingangsvermerk (Einreich-/Bewilligende Stelle)"]
[]
[]
["Bei vorgelegter Abrechnung handelt es sich um die"]
[]
[null,null,null,null,null,null,null,null,null,null,null,null,null,null,null,null,null,null,null,null,null,null,null,null,null,null,null,null,null,null,null,null,null,null,null,null,null,null,null,1]
[]
["Der Gebietskörperschaftsanteil beträgt in %",null,null,null,null,null,null,null,null,null,null,null,null,null,null,null,null,null,null,null,null,null,null,null,null,null,null,null,null,null,null,null,null,null,null,null,null,null,null,{"$f":"IF(PaymAppl_PartialPaymSelect=1,IF(TRIM(PaymAppl_PartialPaymID)=\"\",\"\",\" / TZ \" & TRIM(PaymAppl_PartialPaymID)),\" / EndZ\")","v":""}]
[]
["Vorhaben"]
[]
["Code / Vorhabensart"]
["Bitte auswählen"]
[]
["Kurzbezeichnung des Vorhabens:"]
[]
["Angaben zum Förderungswerber/zur Förderungswerberin ",null,null,null,null,null,null,null,null,null,null,null,null,null,null,null,null,null,null,null,null,null,null,null,null,null,null,null,null,null,null,null,null,null,null,null,null,null,null,1]
[]
["Betriebs- bzw. Klientennummer:",null,null,null,null,null,null,null,null,null,null,null,null,null,null,null,null,null,null,null,null,null,null,"Vorsteuerabzugsberechtigt",null,null,null,null,null,null,null,null,null,null,null,null,null,null,null,{"$f":"IF(AN27=1,\"Ja\",\"Nein\")","v":"Ja"}]
[]
[null,null,null,null,null,null,null,null,null,null,null,null,null,null,null,null,null,null,null,null,null,null,null,null,null,null,null,null,null,null,null,null,null,null,null,null,null,null,null,1]
[null,"Titel, Name, Vorname",null,null,null,null,null,null,null,null,null,null,null,null,null,null,null,null,null,null,null,null,null,null,null,null,"Geburtsdatum",null,null,null,null,null,null,null,null,null,null,null,null,{"$f":"TRIM(PaymAppl_IndividualName)","v":""}]
[]
[]
[null,"Titel, Name, Vorname",null,null,null,null,null,null,null,null,null,null,null,null,null,null,null,null,null,null,null,null,null,null,null,null,"Geburtsdatum",null,null,null,null,null,null,null,null,null,null,null,null,{"$f":"IF(TRIM(PaymAppl_CoupleNameA)=\"\",\"???\",TRIM(PaymAppl_CoupleNameA))","v":"???"}]
[]
[null,"Titel, Name, Vorname",null,null,null,null,null,null,null,null,null,null,null,null,null,null,null,null,null,null,null,null,null,null,null,null,"Geburtsdatum",null,null,null,null,null,null,null,null,null,null,null,null,{"$f":"IF(TRIM(PaymAppl_CoupleNameB)=\"\",\"???\",TRIM(PaymAppl_CoupleNameB))","v":"???"}]
[]
["  "]
[null,"Name/Unternehmen",null,null,null,null,null,null,null,null,null,null,null,null,null,null,null,null,null,null,null,null,null,null,null,null,null,null,null,null,null,null,null,null,null,null,null,null,null,{"$f":"TRIM(PaymAppl_LegalEntityName)","v":""}]
[]
[null,"Gesellschaftsform",null,null,null,null,null,null,null,null,null,null,null,null,null,null,null,null,null,null,null,null,null,null,null,null,"ZVR/FB-Nr./GKZ"]
[]
[]
[null,"Name",null,null,null,null,null,null,null,null,null,null,null,null,null,null,null,null,null,null,null,null,null,null,null,null,null,null,null,null,null,null,null,null,null,null,null,null,null,{"$f":"TRIM(PaymAppl_PersonGroupName)","v":""}]
[]
[null,"Gesellschaftsform"]
[]
["Vertretungsbefugte/r",null,null,null,null,null,null,null,null,null,null,null,null,null,null,null,null,null,null,null,null,null,null,null,null,null,"Geburtsdatum"]
[]
["Vertretungsbefugte/r",null,null,null,null,null,null,null,null,null,null,null,null,null,null,null,null,null,null,null,null,null,null,null,null,null,"Geburtsdatum"]
[]
["Zustelladresse: Straße, Hausnr."]
[]
["Zustelladresse: PLZ, Ort"]
[]
["Betriebsadresse: Straße, Hausnr."]
[]
["Betriebsadresse: PLZ, Ort"]
[]
["Mobil-,Telefonnr./Email-/Internetadresse"]
[]
["Bankverbindung"]
[]
["IBAN",null,null,null,null,null,null,null,null,null,null,null,null,null,null,null,null,null,null,null,null,null,null,null,null,null,"BIC"]
[]
["ACHTUNG:\n",null,null,null,null,"Alle Zahlungen werden auf die letzte von Ihnen bekanntgegebene Bankverbindung überwiesen.\nIhr Auszahlungskonto können Sie jederzeit im eAMA unter KUNDENDATEN einsehen und ändern."]
[]
["Förderungswerber/in",null,null,null,null,null,null,{"$f":"IF(AN31=1,AN32,IF(AN31=2,AN35 & \"/\" & AN37,IF(AN31=3,AN40,IF(AN31=4,AN45,\"???\"))))","v":""},null,null,null,null,null,null,null,null,null,null,null,null,null,null,"Betriebs-/Klientennummer",null,null,null,null,null,null,null,null,{"$f":"IF(ISBLANK(M29),\"\",M29)","v":""}]
[]
["Zahlungsantrag (Seite 2)"]
[]
["eingereichte Kosten"]
[]
[null,null,"Belegbetrag brutto",null,null,null,null,null,null,null,null,"Belegbetrag netto",null,null,null,null,null,null,null,null,"eingereichte Kosten",null,null,null,null,null,null,null,null,"Einnahmen"]
[]
[null,null,{"$f":"Übersicht!D54","v":0},null,null,null,null,null,"€",null,null,{"$f":"IF(PaymAppl_TaxDeduct= \"Nein\", \"---\", Übersicht!E54)","v":0},null,null,null,null,null,"€",null,null,{"$f":"Übersicht!F54","v":0},null,null,null,null,null,"€",null,null,{"$f":"Übersicht!L54","v":0},null,null,null,null,null,"€"]
[]
["genehmigter Zeitraum für die Kostenanerkennung",null,null,null,null,null,null,null,null,null,null,null,null,null,null,null,null,null,null,null,null,null,"von",null,null,null,null,null,null,null,"bis"]
[]
["Allgemeine Beilagen",null,null,null,null,null,null,null,null,null,null,null,null,null,null,null,null,null,null,null,null,null,null,null,null,null,"liegt \nbei",null,null,"wird \nnachgereicht",null,null,null,null,"nicht \nerforderlich"]
[]
["Abrechnungsbelege (Rechnungen, Honorarnoten, Jahreslohnkonten etc.)"]
[]
["Belegaufstellung - Investitionen und Sachaufwand"]
[]
["Belegaufstellung - unbare Eigenleistungen (=unbare Sachleistungen) "]
[]
["Belegaufstellung Personalkosten"]
[]
["Zeitaufzeichnungen, Tätigkeitsbeschreibungen"]
[]
["Zahlungsnachweis/e"]
[]
["Nachweis über die Einhaltung der Publizitätskriterien"]
[]
["Sonstige Beilage(n):"]
[]
["Vorhabensspezifische Beilagen, die spätestens mit der Endabrechnung vorgelegt werden  müssen: ",null,null,null,null,null,null,null,null,null,null,null,null,null,null,null,null,null,null,null,null,null,null,null,null,null,"liegt \nbei",null,null,"wird \nnachgereicht",null,null,null,null,"nicht \nerforderlich"]
[]
["Benutzungsbewilligung"]
[]
["Endbericht"]
[]
["Versichungsnachweis bei Investitionen in unbewegl. Investitionsgegenstände"]
[]
["Evaluierungsdatenblatt"]
[]
["Sonstige Beilage(n):"]
[]
["Angaben zu anderen Förderungen/Zuschüssen",null,null,null,null,null,null,null,null,null,null,null,null,null,null,null,null,null,null,null,null,null,null,null,null,null,null,null,"Keine weitere/n Förderung/en \nbzw. Zuschüsse"]
[]
["Im Rahmen d. Projektes wurde bei folgenden anderen Förderstellen um eine Förderung bzw. einen Zuschuss angesucht:"]
["Geben Sie hier die entsprechende Stelle sowie die/den beantragte(n)/genehmigten(n)/erhaltene(n) Förderung/Zuschuss an!"]
[null,null,null,null,null,null,null,null,null,null,null,null,null,null,null,null,null,null,null,null,null,null,null,null,null,null,"Förderung/Zuschuss im Ausmaß von "]
[]
[]
["Bund:",null,null,null,null,null,null,null,null,null,null,null,null,null,null,null,null,null,null,null,null,null,null,null,null,null,null,null,null,null,null,null,null,null,null,null,"€"]
[]
["Land:",null,null,null,null,null,null,null,null,null,null,null,null,null,null,null,null,null,null,null,null,null,null,null,null,null,null,null,null,null,null,null,null,null,null,null,"€"]
[]
["Gemeinde/n:",null,null,null,null,null,null,null,null,null,null,null,null,null,null,null,null,null,null,null,null,null,null,null,null,null,null,null,null,null,null,null,null,null,null,null,"€"]
[]
["Mit meiner Unterschrift bestätige ich, "]
[null,"-) dass ich alle Angaben im Zahlungsantrag und sämtlichen Beilagen mit bestem Wissen gemacht habe,"]
[null,"-) Abrechnungsbelege nicht in unzulässiger Weise zur Abrechnung einer bei einer anderen Abwicklungsstelle\n    beantragten Förderung eingebracht habe oder einreichen werde (unzulässige Mehrfachförderung)"]
[null,"-) die Beantragung einer mit der LE-Projektförderung kumulierbaren Förderung bei einer anderen Förderungs-\n    abwicklungsstelle der Bewilligenden Stelle gemeldet habe oder melden werde,"]
[null,"-) allen Verpflichtungen gegenüber der Bewilligenden Stelle (z.B. Meldeverpflichtung) nachgekommen bin,\n"]
[null,"-) dass alle Personen, deren Daten im Rahmen dieses Zahlungsantrages offengelegt wurden, von mir darüber\n    informiert wurden, dass eine Verarbeitung ihrer Daten durch die Zahlstelle und Bewilligende Stelle für Zwecke"]
[null,"    der Abwicklung und Kontrolle der Förderung erfolgt."]
["und ersuche um Auszahlung des entsprechenden Förderungsbetrages."]
[]
[]
["Ort, Datum",null,null,null,null,null,null,null,"Name in Blockbuchstaben",null,null,null,null,null,null,null,null,null,null,null,null,null,null,null,"Unterschrift bzw. firmenmäßige Zeichnung"]
[null,null,null,null,null,null,null,null,null,null,null,null,null,null,null,null,null,null,null,null,null,null,null,null,null,null,null,null,null,null,null,null,null,null,null,null,null,null,"RL/AMA v469.11 / Feb. 2019"]
[]
[]
[]
["Liste verfügbarer Vorhabensarten (für Pop-Up-Menu)"]
["Bitte auswählen"]
["M 1 A) - Wissenstransfer und Informationsmaßnahmen in der Land- und Forstwirtschaft - Landwirtschaft"]
["M 1 B) - Wissenstransfer und Informationsmaßnahmen in der Land- und Forstwirtschaft - Forstwirtschaft"]
[" - "]
["2.1.1. A) - Inanspruchnahme von Beratungsleistungen - Landwirtschaft"]
["2.1.1. B) - Inanspruchnahme von Beratungsleistungen - Forstwirtschaft"]
["2.1.1. C) - Inanspruchnahme von Beratungsleistungen - KMU"]
["2.3.1. - Ausbildung von BeraterInnen"]
[" - "]
["3.1.1. - Teilnahme der BewirtschafterInnen landwirtschaftlicher Betriebe an Lebensmittelqualitätsregelungen"]
["3.2.1. - Informations- und Absatzförderungsmaßnahmen"]
[" - "]
["4.1.1. - Investitionen in die landwirtschaftliche Erzeugung"]
["4.2.1. A) - Verarbeitung, Vermarktung und Entwicklung landwirtschaftlicher Erzeugnisse (Bewilligung AWS)"]
["4.2.1. B) - Verarbeitung, Vermarktung und Entwicklung landwirtschaftlicher Erzeugnisse (Bewilligung Bundesländer)"]
["4.3.1. - Investitionen in überbetriebliche Bewässerungsinfrastruktur"]
["4.3.2. - Investitionen in die Infrastruktur für die Entwicklung, Modernisierung und Anpassung der Forstwirtschaft"]
["4.4.1. - Nichtproduktive Investitionen – Ökologische Verbesserung von Gewässern in landwirtschaftlich geprägten Regionen"]
["4.4.2. - Nichtproduktive Investitionen – Investitionen zur Stabilisierung von Rutschungen"]
["4.4.3. - Nichtproduktive Investitionen – Ökologische Agrarinfrastruktur zur Flurentwicklung"]
[" - "]
["6.1.1. - Existenzgründungsbeihilfen für JunglandwirtInnen"]
["6.4.1. - Diversifizierung hin zu nichtlandwirtschaftlichen Tätigkeiten"]
["6.4.2. - Diversifizierung lw. und fw. Betriebe durch Energie aus nachwachsenden Rohstoffen sowie Energiedienstleistungen"]
["6.4.3. - Photovoltaik in der Landwirtschaft"]
["6.4.4. - Gründung von innovativen Kleinunternehmen im ländlichen Raum"]
["6.4.5. - Förderung von Nahversorgungsbetrieben einschließlich gewerblicher Beherbergungs- und Gastronomiebetriebe"]
[" - "]
["7.1.1. A) - Pläne und Entwicklungskonzepte zur Erhaltung des natürlichen Erbes - Naturschutz - Bund"]
["7.1.1. A) - Pläne und Entwicklungskonzepte zur Erhaltung des natürlichen Erbes - Naturschutz - Länder"]
["7.1.1. B) - Pläne und Entwicklungskonzepte zur Erhaltung des natürlichen Erbes - Nationalparks"]
["7.1.2. - Pläne und Entwicklungskonzepte zur Dorferneuerung"]
["7.1.3. - Lokale Agenda 21 - Bund"]
["7.1.3. - Lokale Agenda 21 - Länder"]
["7.2.1. - Ländliche Verkehrsinfrastruktur"]
["7.2.2. - Investitionen in erneuerbare Energien"]
["7.2.3. - Umsetzung von Klima- und Energieprojekten auf lokaler Ebene"]
["7.3.1. - Breitbandinfrastruktur in ländlichen Gebieten"]
["7.4.1. A) - Soziale Angelegenheiten - BMASK"]
["7.4.1. B) - Soziale Angelegenheiten - BMG"]
["7.4.2. - Klimafreundliche Mobilitätslösungen (klimaaktiv mobil)"]
["7.5.1. A) - Investitionen in kleine touristische Infrastruktur - BMNT"]
["7.5.1. B) - Investitionen in kleine touristische Infrastruktur - Forst"]
["7.5.1. C) - Investitionen in kleine touristische Infrastruktur - Länder"]
["7.6.1. A) - Studien und Investitionen zur Erhaltung, Wiederherstellung und Verbesserung des natürlichen Erbes - Naturschutz - Bund "]
["7.6.1. A) - Studien und Investitionen zur Erhaltung, Wiederherstellung und Verbesserung des natürlichen Erbes - Naturschutz - Länder"]
["7.6.1. B) - Studien und Investitionen zur Erhaltung, Wiederherstellung und Verbesserung des natürlichen Erbes - Nationalparks"]
["7.6.1. C) - Studien und Investitionen zur Erhaltung, Wiederherstellung und Verbesserung des natürlichen Erbes - Forst"]
["7.6.2. - Umsetzung von Plänen zur Dorferneuerung und Gemeindeentwicklung"]
["7.6.3. - Erhaltung und Entwicklung der Kulturlandschaft"]
["7.6.4. - Überbetriebliche Maßnahmen für die Bereiche Wald und Schutz vor Naturgefahren"]
["7.6.5. - Stärkung der Potenziale des alpinen ländlichen Raums"]
[" - "]
["8.1.1. - Aufforstung und Anlage von Wäldern"]
["8.4.1. - Vorbeugung von Schäden und Wiederherstellung von Wäldern nach Naturkatastrophen und Katastrophenereignissen - Forstschutz"]
["8.5.1. - Investitionen zur Stärkung von Resistenz und ökologischem Wert des Waldes - Öffentlicher Wert & Schutz vor Naturgefahren"]
["8.5.2. - Investitionen zur Stärkung von Resistenz und ökologischem Wert des Waldes - Genetische Ressourcen"]
["8.5.3. - Investitionen zur Stärkung des ökologischen Werts der Waldökosysteme - Wald-Ökologie-Programm "]
["8.6.1. - Investitionen in Forsttechniken, Verarbeitung, Mobilisierung und Vermarktung forstwirtschaftlicher Erzeugnisse"]
["8.6.2. - Erstellung von waldbezogenen Plänen auf betrieblicher Ebene"]
[" - "]
["15.1.1. - Erhaltung von ökologisch wertvollen/seltenen Waldflächen /-gesellschaften"]
["15.2.1. - Erhaltung und Verbesserung der genetischen Ressourcen des Waldes"]
[" - "]
["16.01.1. - Unterstützung beim Aufbau & Betrieb operationeller Gruppen der EIP für lw. Produktivität & Nachhaltigkeit"]
["16.02.1. - Unterstützung bei der Entwicklung neuer Erzeugnisse, Verfahren & Technologien der Land-, Ernährungs- & Forstwirtschaft"]
["16.02.2. A) - Unterstützung bei der Entwicklung von innovativen Pilotprojekten im Tourismus - BMNT"]
["16.02.2. B) - Unterstützung bei der Entwicklung von innovativen Pilotprojekten im Tourismus - Länder"]
["16.03.1. A) - Zusammenarbeit von kleinen WirtschaftsteilnehmerInnen - Arbeitsabläufe, Ressourcennutzung und Tourismusdienstleistungen "]
["16.03.1. A) - Zusammenarbeit von kleinen WirtschaftsteilnehmerInnen - Arbeitsabläufe, Ressourcennutzung und Tourismusdienstleistungen - BMNT"]
["16.03.1. B) - Zusammenarbeit von kleinen WirtschaftsteilnehmerInnen - Arbeitsabläufe, Ressourcennutzung und Tourismusdienstleistungen - BMNT"]
["16.03.1. C) - Zusammenarbeit von kleinen WirtschaftsteilnehmerInnen - Arbeitsabläufe, Ressourcennutzung und Tourismusdienstleistungen - Länder"]
["16.03.2. - Zusammenarbeit von Kleinstunternehmen im ländlichen Raum"]
["16.04.1. - Schaffung und Entwicklung von kurzen Versorgungsketten und lokalen Märkten sowie unterstützende Absatzförderung "]
["16.05.1. - Stärkung der horizontalen und vertikalen Zusammenarbeit zwischen AkteurInnen im forst- und wasserwirtschaftlichen Sektor"]
["16.05.2. A) - Stärkung der Zusammenarbeit von AkteurInnen und Strukturen zur Erhaltung des natürlichen Erbes & des Umweltschutzes - Naturschutz"]
["16.05.2. A) - Stärkung der Zusammenarbeit von AkteurInnen und Strukturen zur Erhaltung des natürlichen Erbes & des Umweltschutzes - Naturschutz - Länder"]
["16.05.2. B) - Stärkung der Zusammenarbeit von AkteurInnen und Strukturen zur Erhaltung des natürlichen Erbes & des Umweltschutzes - Umweltschutz"]
["16.05.2. C) - Stärkung der Zusammenarbeit von AkteurInnen und Strukturen zur Erhaltung des natürlichen Erbes & des Umweltschutzes - Nationalparks"]
["16.08.1. - Waldbezogene Pläne auf überbetrieblicher Ebene"]
["16.09.1. - Förderung horizontaler & vertikaler Zusammenarbeit lw. & fw. AkteurInnen zur Schaffung & Entwicklung v. Sozialleistungen - BMNT"]
["16.10.1. - Einrichtung und Betrieb von Clustern - BMNT"]
["16.10.2. - Einrichtung und Betrieb von Netzwerken - BMNT"]
["16.10.3. - Zusammenarbeit: Erzeugergemeinschaften /-organisationen, Genossenschaften und Branchenverbände - BMNT"]
[" - "]
["19.1.1. - Erstellung der lokalen Entwicklungsstrategie - Länder"]
["19.1.1. - Erstellung der lokalen Entwicklungsstrategie"]
["19.2.1. - Umsetzung der lokalen Entwicklungsstrategie - Länder"]
["19.2.1. - Umsetzung der lokalen Entwicklungsstrategie"]
["19.3.1. - Umsetzung von nationalen oder transnationalen Kooperationsprojekten - Länder"]
["19.3.1. - Umsetzung von nationalen oder transnationalen Kooperationsprojekten"]
["19.4.1. - Laufende Kosten des LAG-Managements und Sensibilisierung - Länder"]
["19.4.1. - Laufende Kosten des LAG-Managements und Sensibilisierung"]
[" - "]
["20.1. - Technische Hilfe (außer Netzwerk)"]
["20.2. - Technische Hilfe - Netzwerk"]

{"sheet":"TABLE Fördergeber","index":2,"n_rows":87,"n_cols":2,"rows_kept":87,"cut":false,"hidden":true,"merged":[]}
["Vorhabensart (alphabet. Sortiert)","Fördergeber"]
[" - "," - "]
["15.1.1. - Erhaltung von ökologisch wertvollen/seltenen Waldflächen /-gesellschaften","BMNT/LE1420/LD/EU"]
["15.2.1. - Erhaltung und Verbesserung der genetischen Ressourcen des Waldes","BMNT/LE1420/LD/EU"]
["16.01.1. - Unterstützung beim Aufbau & Betrieb operationeller Gruppen der EIP für lw. Produktivität & Nachhaltigkeit","BMNT/LE1420/LD/EU"]
["16.02.1. - Unterstützung bei der Entwicklung neuer Erzeugnisse, Verfahren & Technologien der Land-, Ernährungs- & Forstwirtschaft","BMNT/LE1420/LD/EU"]
["16.02.2. A) - Unterstützung bei der Entwicklung von innovativen Pilotprojekten im Tourismus - BMNT","BMNT/LE/EU"]
["16.02.2. B) - Unterstützung bei der Entwicklung von innovativen Pilotprojekten im Tourismus - Länder","LD/LE1420/EU"]
["16.03.1. A) - Zusammenarbeit von kleinen WirtschaftsteilnehmerInnen - Arbeitsabläufe, Ressourcennutzung und Tourismusdienstleistungen ","BMNT/LE1420/LD/EU"]
["16.03.1. A) - Zusammenarbeit von kleinen WirtschaftsteilnehmerInnen - Arbeitsabläufe, Ressourcennutzung und Tourismusdienstleistungen - BMNT","BMNT/LE1420/EU"]
["16.03.1. B) - Zusammenarbeit von kleinen WirtschaftsteilnehmerInnen - Arbeitsabläufe, Ressourcennutzung und Tourismusdienstleistungen - BMNT","BMNT/LE/EU"]
["16.03.1. C) - Zusammenarbeit von kleinen WirtschaftsteilnehmerInnen - Arbeitsabläufe, Ressourcennutzung und Tourismusdienstleistungen - Länder","LD/LE1420/EU"]
["16.03.2. - Zusammenarbeit von Kleinstunternehmen im ländlichen Raum","BMDW/LE/EU"]
["16.04.1. - Schaffung und Entwicklung von kurzen Versorgungsketten und lokalen Märkten sowie unterstützende Absatzförderung ","BMNT/LE1420/LD/EU"]
["16.05.1. - Stärkung der horizontalen und vertikalen Zusammenarbeit zwischen AkteurInnen im forst- und wasserwirtschaftlichen Sektor","BMNT/LE1420/LD/EU"]
["16.05.2. A) - Stärkung der Zusammenarbeit von AkteurInnen und Strukturen zur Erhaltung des natürlichen Erbes & des Umweltschutzes - Naturschutz","BMNT/LE1420/EU"]
["16.05.2. A) - Stärkung der Zusammenarbeit von AkteurInnen und Strukturen zur Erhaltung des natürlichen Erbes & des Umweltschutzes - Naturschutz - Länder","LD/LE1420/EU"]
["16.05.2. B) - Stärkung der Zusammenarbeit von AkteurInnen und Strukturen zur Erhaltung des natürlichen Erbes & des Umweltschutzes - Umweltschutz","BMNT/LE1420/EU"]
["16.05.2. C) - Stärkung der Zusammenarbeit von AkteurInnen und Strukturen zur Erhaltung des natürlichen Erbes & des Umweltschutzes - Nationalparks","BMNT/LE1420/EU"]
["16.08.1. - Waldbezogene Pläne auf überbetrieblicher Ebene","BMNT/LE1420/LD/EU"]
["16.09.1. - Förderung horizontaler & vertikaler Zusammenarbeit lw. & fw. AkteurInnen zur Schaffung & Entwicklung v. Sozialleistungen - BMNT","BMNT/LE1420/LD/EU"]
["16.10.1. - Einrichtung und Betrieb von Clustern - BMNT","BMNT/LE1420/LD/EU"]
["16.10.2. - Einrichtung und Betrieb von Netzwerken - BMNT","BMNT/LE1420/LD/EU"]
["16.10.3. - Zusammenarbeit: Erzeugergemeinschaften /-organisationen, Genossenschaften und Branchenverbände - BMNT","BMNT/LE1420/LD/EU"]
["19.1.1. - Erstellung der lokalen Entwicklungsstrategie","BMNT/LE1420/LD/LEADER/EU"]
["19.1.1. - Erstellung der lokalen Entwicklungsstrategie - Länder","LD/LE1420/LEADER/EU"]
["19.2.1. - Umsetzung der lokalen Entwicklungsstrategie","BMNT/LE1420/LD/LEADER/EU"]
["19.2.1. - Umsetzung der lokalen Entwicklungsstrategie - Länder","LD/LE1420/LEADER/EU"]
["19.3.1. - Umsetzung von nationalen oder transnationalen Kooperationsprojekten","BMNT/LE1420/LD/LEADER/EU"]
["19.3.1. - Umsetzung von nationalen oder transnationalen Kooperationsprojekten - Länder","LD/LE1420/LEADER/EU"]
["19.4.1. - Laufende Kosten des LAG-Managements und Sensibilisierung","BMNT/LE1420/LD/LEADER/EU"]
["19.4.1. - Laufende Kosten des LAG-Managements und Sensibilisierung - Länder","LD/LE1420/LEADER/EU"]
["2.1.1. A) - Inanspruchnahme von Beratungsleistungen - Landwirtschaft","BMNT/LE1420/LD/LEADER/EU"]
["2.1.1. B) - Inanspruchnahme von Beratungsleistungen - Forstwirtschaft","BMNT/LE1420/LD/EU"]
["2.1.1. C) - Inanspruchnahme von Beratungsleistungen - KMU","LD/LE1420/EU"]
["2.3.1. - Ausbildung von BeraterInnen","BMNT/LE1420/LD/EU"]
["20.1. - Technische Hilfe (außer Netzwerk)","BMNT/LE1420/LD/EU"]
["20.2. - Technische Hilfe - Netzwerk","BMNT/LE1420/LD/EU"]
["3.1.1. - Teilnahme der BewirtschafterInnen landwirtschaftlicher Betriebe an Lebensmittelqualitätsregelungen","BMNT/LE1420/LD/EU"]
["3.2.1. - Informations- und Absatzförderungsmaßnahmen","BMNT/LE1420/LD/EU"]
["4.1.1. - Investitionen in die landwirtschaftliche Erzeugung","BMNT/LE1420/LD/EU"]
["4.2.1. A) - Verarbeitung, Vermarktung und Entwicklung landwirtschaftlicher Erzeugnisse (Bewilligung AWS)","BMNT/LE1420/LD/EU"]
["4.2.1. B) - Verarbeitung, Vermarktung und Entwicklung landwirtschaftlicher Erzeugnisse (Bewilligung Bundesländer)","BMNT/LE1420/LD/EU"]
["4.3.1. - Investitionen in überbetriebliche Bewässerungsinfrastruktur","BMNT/LE1420/LD/EU"]
["4.3.2. - Investitionen in die Infrastruktur für die Entwicklung, Modernisierung und Anpassung der Forstwirtschaft","BMNT/LE1420/LD/EU"]
["4.4.1. - Nichtproduktive Investitionen – Ökologische Verbesserung von Gewässern in landwirtschaftlich geprägten Regionen","BMNT/LE1420/LD/EU"]
["4.4.2. - Nichtproduktive Investitionen – Investitionen zur Stabilisierung von Rutschungen","BMNT/LE1420/LD/EU"]
["4.4.3. - Nichtproduktive Investitionen – Ökologische Agrarinfrastruktur zur Flurentwicklung","BMNT/LE1420/LD/EU"]
["6.1.1. - Existenzgründungsbeihilfen für JunglandwirtInnen","BMNT/LE1420/LD/EU"]
["6.4.1. - Diversifizierung hin zu nichtlandwirtschaftlichen Tätigkeiten","BMNT/LE1420/LD/EU"]
["6.4.2. - Diversifizierung lw. und fw. Betriebe durch Energie aus nachwachsenden Rohstoffen sowie Energiedienstleistungen","BMNT/LE1420/LD/EU"]
["6.4.3. - Photovoltaik in der Landwirtschaft","BMNT/LE1420/EU"]
["6.4.4. - Gründung von innovativen Kleinunternehmen im ländlichen Raum","BMDW/LE/EU"]
["6.4.5. - Förderung von Nahversorgungsbetrieben einschließlich gewerblicher Beherbergungs- und Gastronomiebetriebe","LD/LE1420/EU"]
["7.1.1. A) - Pläne und Entwicklungskonzepte zur Erhaltung des natürlichen Erbes - Naturschutz - Bund","BMNT/LE1420/EU"]
["7.1.1. A) - Pläne und Entwicklungskonzepte zur Erhaltung des natürlichen Erbes - Naturschutz - Länder","LD/LE1420/EU"]
["7.1.1. B) - Pläne und Entwicklungskonzepte zur Erhaltung des natürlichen Erbes - Nationalparks","BMNT/LE1420/EU"]
["7.1.2. - Pläne und Entwicklungskonzepte zur Dorferneuerung","LD/LE1420/EU"]
["7.1.3. - Lokale Agenda 21 - Bund","BMNT/LE1420/EU"]
["7.1.3. - Lokale Agenda 21 - Länder","LD/LE1420/EU"]
["7.2.1. - Ländliche Verkehrsinfrastruktur","BMNT/LE1420/LD/EU"]
["7.2.2. - Investitionen in erneuerbare Energien","BMNT/LE1420/EU"]
["7.2.3. - Umsetzung von Klima- und Energieprojekten auf lokaler Ebene","BMNT/LE1420/EU"]
["7.3.1. - Breitbandinfrastruktur in ländlichen Gebieten","BMVIT/LE/EU"]
["7.4.1. A) - Soziale Angelegenheiten - BMASK","LD/LE1420/EU"]
["7.4.1. B) - Soziale Angelegenheiten - BMG","LD/LE1420/EU"]
["7.4.2. - Klimafreundliche Mobilitätslösungen (klimaaktiv mobil)","BMNT/LE1420/EU"]
["7.5.1. A) - Investitionen in kleine touristische Infrastruktur - BMNT","BMNT/LE/EU"]
["7.5.1. B) - Investitionen in kleine touristische Infrastruktur - Forst","LD/LE1420/EU"]
["7.5.1. C) - Investitionen in kleine touristische Infrastruktur - Länder","LD/LE1420/EU"]
["7.6.1. A) - Studien und Investitionen zur Erhaltung, Wiederherstellung und Verbesserung des natürlichen Erbes - Naturschutz - Bund ","BMNT/LE1420/EU"]
["7.6.1. A) - Studien und Investitionen zur Erhaltung, Wiederherstellung und Verbesserung des natürlichen Erbes - Naturschutz - Länder","LD/LE1420/EU"]
["7.6.1. B) - Studien und Investitionen zur Erhaltung, Wiederherstellung und Verbesserung des natürlichen Erbes - Nationalparks","BMNT/LE1420/EU"]
["7.6.1. C) - Studien und Investitionen zur Erhaltung, Wiederherstellung und Verbesserung des natürlichen Erbes - Forst","BMNT/LE1420/EU"]
["7.6.2. - Umsetzung von Plänen zur Dorferneuerung und Gemeindeentwicklung","LD/LE1420/EU"]
["7.6.3. - Erhaltung und Entwicklung der Kulturlandschaft","BMNT/LE1420/LD/EU"]
["7.6.4. - Überbetriebliche Maßnahmen für die Bereiche Wald und Schutz vor Naturgefahren","BMNT/LE1420/LD/EU"]
["7.6.5. - Stärkung der Potenziale des alpinen ländlichen Raums","BMNT/LE1420/EU"]
["8.1.1. - Aufforstung und Anlage von Wäldern","BMNT/LE1420/LD/EU"]
["8.4.1. - Vorbeugung von Schäden und Wiederherstellung von Wäldern nach Naturkatastrophen und Katastrophenereignissen - Forstschutz","BMNT/LE1420/LD/EU"]
["8.5.1. - Investitionen zur Stärkung von Resistenz und ökologischem Wert des Waldes - Öffentlicher Wert & Schutz vor Naturgefahren","BMNT/LE1420/LD/EU"]
["8.5.2. - Investitionen zur Stärkung von Resistenz und ökologischem Wert des Waldes - Genetische Ressourcen","BMNT/LE1420/LD/EU"]
["8.5.3. - Investitionen zur Stärkung des ökologischen Werts der Waldökosysteme - Wald-Ökologie-Programm ","BMNT/LE1420/LD/EU"]
["8.6.1. - Investitionen in Forsttechniken, Verarbeitung, Mobilisierung und Vermarktung forstwirtschaftlicher Erzeugnisse","BMNT/LE1420/LD/EU"]
["8.6.2. - Erstellung von waldbezogenen Plänen auf betrieblicher Ebene","BMNT/LE1420/LD/EU"]
["M 1 A) - Wissenstransfer und Informationsmaßnahmen in der Land- und Forstwirtschaft - Landwirtschaft","BMNT/LE1420/LD/EU"]
["M 1 B) - Wissenstransfer und Informationsmaßnahmen in der Land- und Forstwirtschaft - Forstwirtschaft","BMNT/LE1420/LD/EU"]

{"sheet":"TEMPLATE Auswahl Belegaufst.","index":3,"n_rows":37,"n_cols":5,"rows_kept":37,"cut":false,"hidden":true,"merged":[[0,0,0,4],[8,2,8,3],[30,1,30,3],[2,2,2,3],[4,2,4,3],[6,2,6,3]]}
["Zahlungsantrag - Stammdaten/Übersicht"]
[null,null,null,null,"RL/AMA v469.11 / Feb. 2019"]
[null,"Betriebs-/Klientennummer: "]
[]
[null,"Förderungswerber: "]
[]
[null,"Antragsnummer: "]
[]
[null,"Vorsteuerabzugsberechtigung: ",{"$f":"C10","v":"Nein"}]
[null,null,{"$f":"IF(D10=1,\"Ja\",\"Nein\")","v":"Nein"},2]
[]
[null,"Genehmigter Zeitraum für  ","Beginn","Ende"]
[null,"Kostenanerkennung: "]
[]
[]
[]
[]
[]
[]
[]
[]
[]
[]
[]
[]
[]
[]
[]
[]
[]
[null,"Buttons nur zur internen Verwendung der Bewilligenden Stelle"]
[]
[]
[]
[]
[]
[null,null,null,"U"]

{"sheet":"Auswahl Belegaufstellungen","index":4,"n_rows":37,"n_cols":5,"rows_kept":37,"cut":false,"hidden":true,"merged":[[30,1,30,3],[0,0,0,4],[2,2,2,3],[4,2,4,3],[6,2,6,3],[8,2,8,3]]}
["Zahlungsantrag - Stammdaten/Übersicht"]
[null,null,null,null,"RL/AMA v469.11 / Feb. 2019"]
[null,"Betriebs-/Klientennummer: ",{"$f":"TRIM('Zahlungsantrag LEW14-20'!PaymAppl_ApplicantID)","v":""}]
[]
[null,"Förderungswerber: ",{"$f":"TRIM('Zahlungsantrag LEW14-20'!PaymAppl_ApplicantName)","v":""}]
[]
[null,"Antragsnummer: ",{"$f":"TRIM('Zahlungsantrag LEW14-20'!PaymAppl_ApplicationID) & 'Zahlungsantrag LEW14-20'!PaymAppl_PartialPaymTitle","v":""}]
[]
[null,"Vorsteuerabzugsberechtigung: ",{"$f":"TRIM('Zahlungsantrag LEW14-20'!PaymAppl_TaxDeduct)","v":"Ja"}]
[null,null,{"$f":"IF(D10=1,\"Ja\",\"Nein\")","v":"Nein"},2]
[]
[null,"Genehmigter Zeitraum für  ","Beginn","Ende"]
[null,"Kostenanerkennung: ",{"$f":"IF(TRIM('Zahlungsantrag LEW14-20'!PaymAppl_SupportPeriodStart)=\"\",\"\",'Zahlungsantrag LEW14-20'!PaymAppl_SupportPeriodStart)","v":""},{"$f":"IF(TRIM('Zahlungsantrag LEW14-20'!PaymAppl_SupportPeriodEnd)=\"\",\"\",'Zahlungsantrag LEW14-20'!PaymAppl_SupportPeriodEnd)","v":""}]
[]
[]
[]
[]
[]
[]
[]
[]
[]
[]
[]
[]
[]
[]
[]
[]
[]
[null,"Buttons nur zur internen Verwendung der Bewilligenden Stelle"]
[]
[]
[]
[]
[]
[null,null,null,"U"]

{"sheet":"Übersicht","index":5,"n_rows":54,"n_cols":12,"rows_kept":54,"cut":false,"hidden":false,"merged":[[6,0,6,1],[6,2,6,5],[0,0,0,11],[2,0,2,1],[2,2,2,5],[4,0,4,1],[4,2,4,5],[16,0,16,11],[41,0,41,11],[47,0,47,11],[51,0,51,11],[8,0,8,1],[8,2,8,5],[10,0,10,1],[11,0,11,1],[13,2,13,5],[15,0,15,11]]}
["Übersicht"]
[null,null,null,null,null,null,null,null,null,null,null,"RL/AMA v469.11 / Feb. 2019"]
["Betriebs-/Klientennummer: ",null,{"$f":"TRIM('Auswahl Belegaufstellungen'!Stm_ApplicantID)","v":""}]
[]
["Förderungswerber: ",null,{"$f":"TRIM('Auswahl Belegaufstellungen'!Stm_ApplicantName)","v":""}]
[]
["Antragsnummer: ",null,{"$f":"TRIM('Auswahl Belegaufstellungen'!Stm_ApplicationID)","v":""}]
[]
["Vorsteuerabzugsberechtigung: ",null,{"$f":"'Auswahl Belegaufstellungen'!Stm_TaxDeduct","v":"Ja"}]
[]
["Genehmigter Zeitraum für  ",null,null,"Beginn","---","Ende"]
["Kostenanerkennung: ",null,null,{"$f":"IF(TRIM('Auswahl Belegaufstellungen'!Stm_SupportPeriodStart)=\"\",\"\",'Auswahl Belegaufstellungen'!Stm_SupportPeriodStart)","v":""},"---",{"$f":"IF(TRIM('Auswahl Belegaufstellungen'!Stm_SupportPeriodEnd)=\"\",\"\",'Auswahl Belegaufstellungen'!Stm_SupportPeriodEnd)","v":""}]
[]
[null,"Gruppierung nach:  ","Teilprojekt"]
[]
["Buttons zur internen Verwendung der Bewilligenden Stelle"]
[]
[]
[]
[]
[]
[]
[]
[]
[]
[]
[]
[]
[]
[]
[]
[]
[]
[]
[]
[]
[]
[]
[]
[]
[255,1023,1,1,"Teilprojekt","Fördergegenstand","Teilprojekt","Codierung / Fördergegenstand"]
["Gesamtsumme"]
["Tabellenblatt","Kostenart","Fördergegenstand","Gesamtkosten\nbrutto","Gesamtkosten\nnetto","eingereichte\nKosten","verminderte Kosten\nnach VWK","anrechenbare Kosten\nnach VWK","verminderte Kosten nach VOK","anrechenbare Kosten nach VOK","Sanktions-\nrelevante Kosten\ngemäß Art. 35","Einnahmen "]
[]
[null,"Summe: "]
[]
[null,"Gesamtsumme: "]
["Keine Belegaufstellungen verfügbar"]
["Tabellenblatt","Kostenart","Fördergegenstand","Gesamtkosten\nbrutto","Gesamtkosten\nnetto","eingereichte\nKosten","verminderte Kosten\nnach VWK","anrechenbare Kosten\nnach VWK","verminderte Kosten nach VOK","anrechenbare Kosten nach VOK","Sanktions-\nrelevante Kosten\ngemäß Art. 35","Einnahmen "]
[null,"Summe: "]
[]
["Gesamtsumme"]
["Tabellenblatt","Kostenart","Fördergegenstand","Gesamtkosten\nbrutto","Gesamtkosten\nnetto","eingereichte\nKosten","verminderte Kosten\nnach VWK","anrechenbare Kosten\nnach VWK","verminderte Kosten nach VOK","anrechenbare Kosten nach VOK","Sanktions-\nrelevante Kosten\ngemäß Art. 35","Einnahmen "]
[null,"Gesamtsumme: "]

{"sheet":"TEMPLATE Übersicht","index":6,"n_rows":47,"n_cols":12,"rows_kept":47,"cut":false,"hidden":true,"merged":[[8,0,8,1],[8,2,8,5],[16,0,16,11],[41,0,41,11],[10,0,10,1],[11,0,11,1],[13,2,13,5],[15,0,15,11],[6,0,6,1],[6,2,6,5],[0,0,0,11],[2,0,2,1],[2,2,2,5],[4,0,4,1],[4,2,4,5]]}
["Übersicht"]
[null,null,null,null,null,null,null,null,null,null,null,"RL/AMA v469.11 / Feb. 2019"]
["Betriebs-/Klientennummer: ",null,{"$f":"TRIM(Stm_ApplicantID)","v":""}]
[]
["Förderungswerber: ",null,{"$f":"TRIM(Stm_ApplicantName)","v":""}]
[]
["Antragsnummer: ",null,{"$f":"TRIM(Stm_ApplicationID)","v":""}]
[]
["Vorsteuerabzugsberechtigung: ",null,{"$f":"Stm_TaxDeduct","v":"Nein"}]
[]
["Genehmigter Zeitraum für  ",null,null,"Beginn","---","Ende"]
["Kostenanerkennung: ",null,null,{"$f":"IF(TRIM(Stm_SupportPeriodStart)=\"\",\"\",Stm_SupportPeriodStart)","v":""},"---",{"$f":"IF(TRIM(Stm_SupportPeriodEnd)=\"\",\"\",Stm_SupportPeriodEnd)","v":""}]
[]
[null,"Gruppierung nach:  ","Fördergegenstand"]
[]
["Buttons zur internen Verwendung der Bewilligenden Stelle"]
[]
[]
[]
[]
[]
[]
[]
[]
[]
[]
[]
[]
[]
[]
[]
[]
[]
[]
[]
[]
[]
[]
[]
[]
[31,1023,1,1,null,"Fördergegenstand","Teilprojekt","Codierung / Fördergegenstand"]
["Gesamtsumme"]
["Tabellenblatt","Kostenart","Fördergegenstand","Gesamtkosten\nbrutto","Gesamtkosten\nnetto","eingereichte\nKosten","verminderte Kosten\nnach VWK","anrechenbare Kosten\nnach VWK","verminderte Kosten nach VOK","anrechenbare Kosten nach VOK","Sanktions-\nrelevante Kosten\ngemäß Art. 35","Einnahmen "]
[]
[null,"Summe: "]
[]
[null,"Gesamtsumme: "]

{"sheet":"TEMPLATE Invest & Sachkosten","index":7,"n_rows":43,"n_cols":42,"rows_kept":43,"cut":false,"hidden":true,"merged":[[41,3,41,5],[41,7,41,13],[23,18,23,27],[11,2,11,3],[11,4,11,5],[23,2,23,17],[40,3,40,5],[40,7,40,13],[0,2,0,17],[1,16,1,17],[2,16,2,17],[4,2,4,3],[4,4,4,5],[23,38,23,41],[6,2,6,3],[6,4,6,5],[8,2,8,3],[8,4,8,5],[23,29,23,37],[13,2,13,3],[13,4,13,5],[16,2,16,3],[17,2,17,3],[19,2,19,5],[10,2,10,3],[10,4,10,5]]}
[":","Investkosten","Zahlungsantrag - Belegaufstellung für Investitionskosten"]
[":","Sachkosten","Zahlungsantrag - Belegaufstellung für Sachkosten"]
[":","Invest- & Sachkosten","Zahlungsantrag - Belegaufstellung für Investitions- und Sachkosten"]
["UBVbv",null,null,null,null,null,null,null,null,null,null,null,null,null,null,null,null,"RL/AMA v469.11 / Feb. 2019"]
["UBVbv",null,"Betriebs-/Klientennummer: "]
["UBVbv"]
["UBVbv",null,"Förderungswerber: "]
["UBVbv"]
["UBVbv",null,"Antragsnummer: "]
["UBVbv"]
["UBVbv",null,"Fördergegenstand: "]
[]
["UBVbv"]
["UBVbv",null,"Vorsteuerabzugsberechtigung: ",null,{"$f":"E15","v":"Ja"},null,null,"Nein"]
[null,null,null,null,{"$f":"IF(F15=1,\"Ja\",\"Nein\")","v":"Ja"},1]
["UBVbv"]
["UBVbv",null,"Genehmigter Zeitraum für  ",null,"Beginn","Ende"]
["UBVbv",null,"Kostenanerkennung: "]
["UBVbv"]
["UBVbv",null,"Buttons zur internen Verwendung der Bewilligenden Stelle"]
["UBVbv"]
["UBVbv"]
["-","-","UBVbv","UBVbv","UBVbv","UBVbv","UBV","UBVbv","UBV","UBVbv",null,"UBVbv",null,"UBV","UBV","UBV","UBV","UBVbv","BV","BV","BV","BV","BV","BV","BV","BV","BVbv","BVbv","V","V","V","V","V","V","V","V","Vv","Vv","BV","BV","BVbv","BVbv"]
["UBVbv",null,"Belege",null,null,null,null,null,null,null,null,null,null,null,null,null,null,null,"von der Bewilligenden Stelle im Rahmen der VWK auszufüllen",null,null,null,null,null,null,null,null,null,"von VOK auszufüllen","von der Bewilligenden Stelle auszufüllen (im Rahmen einer VOK)",null,null,null,null,null,null,null,null,"von der Bewilligenden Stelle auszufüllen"]
["UBVbv","Head","lfd. Nr.","Belegnr. / \nRechnungsnummer","Belegdatum","Firma bzw. Name","Bezeichnung (Ware, Leistung)","Zuordnung zu Teilprojekt \n(falls erforderlich)","Datum Saldierung\n(Zahlungs-\ndatum)","Belegbetrag \nbrutto","MwSt.\nSatz","Belegbetrag\nnetto","Belegbetrag\n(interne Rechenbasis)","davon nicht anrechenbare Kosten","nicht anrechenbare Skonti (%)","anrechenbare Kosten","Abzüge \nin %","eingereichte  \nKosten","Codierung\n(optional)","nicht anrechenbare zu vermindernde Kosten durch VWK","nicht anrechenbare zu vermindernde Skonti (%) durch VWK","verminderte Abzüge in % nach VWK","verminderte Kosten nach VWK","nicht anrechenbare zu sanktionierende Kosten durch VWK","nicht anrechenbare zu sanktionierende Skonti (%) durch VWK","sanktionierte Abzüge in % nach VWK","anrechenbare Kosten nach VWK","Anmerkung zur VWK","Feststellungen der VOK","nicht anrechenbare zu vermindernde Kosten durch VOK","nicht anrechenbare zu vermindernde Skonti (%) durch VOK","verminderte Abzüge in % nach VOK","verminderte Kosten nach VOK","nicht anrechenbare zu sanktionierende Kosten durch VOK","nicht anrechenbare zu sanktionierende Skonti (%) durch VOK","sanktionierte Abzüge in % nach VOK","anrechenbare Kosten nach VOK","Anmerkung zur VOK","ermittelte Kosten gemäß Art. 35","Sanktion in % gemäß Art. 35","sanktionsrelevante Kosten\ngemäß Art. 35","Anmerkung zur Sanktion gemäß Art. 35 (VO 640/2014)"]
["UBVbv","Receipt",1,null,null,null,null,null,null,null,0.2,{"$f":"IF(OR(ISBLANK(J26),ISBLANK(K26)),0,ROUND(J26 / (1+K26),2))","v":0},{"$f":"IF($E$14=\"Nein\",J26,L26)","v":0},null,null,{"$f":"ROUND((M26-N26)*(1-O26),2)","v":0},null,{"$f":"ROUND(P26*(1-Q26),2)","v":0},null,null,null,null,{"$f":"ROUND((M26-N26-T26)*(1-O26-U26)*(1-Q26-V26),2)","v":0},null,null,null,{"$f":"ROUND((M26-N26-T26-X26)*(1-O26-U26-Y26)*(1-Q26-V26-Z26),2)","v":0},null,null,null,null,null,{"$f":"ROUND((M26-N26-T26-X26-AD26)*(1-O26-U26-Y26-AE26)*(1-Q26-V26-Z26-AF26),2)","v":0},null,null,null,{"$f":"ROUND((M26-N26-T26-X26-AD26-AH26)*(1-O26-U26-Y26-AE26-AI26)*(1-Q26-V26-Z26-AF26-AJ26),2)","v":0},null,{"$f":"AK26","v":0},null,{"$f":"AM26*AN26","v":0}]
["UBVbv","Receipt",{"$f":"C26+1","v":2},null,null,null,null,null,null,null,0.2,0,0,null,null,0,null,0,null,null,null,null,0,null,null,null,0,null,null,null,null,null,0,null,null,null,0,null,0,null,0]
["UBVbv","Receipt",3,null,null,null,null,null,null,null,0.2,0,0,null,null,0,null,0,null,null,null,null,0,null,null,null,0,null,null,null,null,null,0,null,null,null,0,null,0,null,0]
["UBVbv","Receipt",4,null,null,null,null,null,null,null,0.2,0,0,null,null,0,null,0,null,null,null,null,0,null,null,null,0,null,null,null,null,null,0,null,null,null,0,null,0,null,0]
["UBVbv","Receipt",5,null,null,null,null,null,null,null,0.2,0,0,null,null,0,null,0,null,null,null,null,0,null,null,null,0,null,null,null,null,null,0,null,null,null,0,null,0,null,0]
["UBVbv","Receipt",6,null,null,null,null,null,null,null,0.2,0,0,null,null,0,null,0,null,null,null,null,0,null,null,null,0,null,null,null,null,null,0,null,null,null,0,null,0,null,0]
["UBVbv","Receipt",7,null,null,null,null,null,null,null,0.2,0,0,null,null,0,null,0,null,null,null,null,0,null,null,null,0,null,null,null,null,null,0,null,null,null,0,null,0,null,0]
[null,null,null,null,null,null,null,null,null,null,null,null,0,null,null,0,null,null,null,null,null,null,0,null,null,null,0,null,null,null,null,null,0,null,null,null,0]
["UBVbv","Receipt",{"$f":"C33+1","v":1},null,null,null,null,null,null,null,0.2,{"$f":"IF(OR(ISBLANK(J34),ISBLANK(K34)),0,ROUND(J34 / (1+K34),2))","v":0},0,null,null,0,null,{"$f":"ROUND(P34*(1-Q34),2)","v":0},null,null,null,null,0,null,null,null,0,null,null,null,null,null,0,null,null,null,0,null,{"$f":"AK34","v":0},null,{"$f":"AM34*AN34","v":0}]
["-","Tail",{"$f":"C34+1","v":2},"-- Do not Erase --","-- Do not Erase --","-- Do not Erase --","-- Do not Erase --",null,null,null,0.2,{"$f":"IF(OR(ISBLANK(J35),ISBLANK(K35)),0,J35 / (1+K35))","v":0},0,null,null,0,null,{"$f":"P35*(1-Q35)","v":0},null,null,null,null,0,null,null,null,0,null,null,null,null,null,0,null,null,null,0,null,{"$f":"AK35","v":0},null,{"$f":"AM35*AN35","v":0}]
["UBVbv",null,null,null,null,null,null,null,"Gesamtsumme:",{"$f":"ROUND(SUM(J26:J35),2)","v":0},null,{"$f":"ROUND(SUM(L26:L35),2)","v":0},null,null,null,{"$f":"SUM(P26:P35)","v":0},null,{"$f":"SUM(R26:R35)","v":0},null,{"$f":"ROUND(SUM(T26:T35),2)","v":0},null,null,{"$f":"SUM(W26:W35)","v":0},{"$f":"ROUND(SUM(X26:X35),2)","v":0},null,null,{"$f":"SUM(AA26:AA35)","v":0},null,null,{"$f":"ROUND(SUM(AD26:AD35),2)","v":0},null,null,{"$f":"SUM(AG26:AG35)","v":0},{"$f":"ROUND(SUM(AH26:AH35),2)","v":0},null,null,{"$f":"SUM(AK26:AK35)","v":0},null,null,null,{"$f":"SUM(AO26:AO35)","v":0}]
["U"]
["U"]
["U"]
["U"]
["U"]
["U",null,null,"Ort, Datum",null,null,null,"Unterschrift oder firmenmäßige Zeichnung"]
["U"]

{"sheet":"TEMPLATE Standardkosten","index":8,"n_rows":40,"n_cols":38,"rows_kept":40,"cut":false,"hidden":true,"merged":[[21,34,21,37],[0,2,0,13],[2,2,2,4],[2,5,2,6],[4,2,4,4],[4,5,4,6],[17,2,17,6],[9,5,9,6],[21,25,21,33],[6,2,6,4],[39,2,39,4],[39,6,39,13],[15,2,15,4],[21,2,21,13],[38,2,38,4],[38,6,38,13],[6,5,6,6],[11,2,11,4],[11,5,11,6],[21,14,21,23],[8,2,8,4],[8,5,8,6],[9,2,9,4],[14,2,14,4]]}
["UBVbv",null,"Zahlungsantrag - Standardkosten"]
["UBVbv",null,null,null,null,null,null,null,null,null,null,null,null,"RL/AMA v469.11 / Feb. 2019"]
["UBVbv",null,"Betriebs-/Klientennummer: "]
["UBVbv"]
["UBVbv",null,"Förderungswerber: "]
["UBVbv"]
["UBVbv",null,"Antragsnummer: "]
["UBVbv"]
["UBVbv",null,"Fördergegenstand: "]
[]
["UBVbv"]
["UBVbv",null,"Vorsteuerabzugsberechtigung: ",null,null,{"$f":"F13","v":"Ja"}]
[null,null,null,null,null,{"$f":"IF(G13=1,\"Ja\",\"Nein\")","v":"Ja"},1]
["UBVbv"]
["UBVbv",null,"Genehmigter Zeitraum für  ",null,null,"Beginn","Ende"]
["UBVbv",null,"Kostenanerkennung: "]
["UBVbv"]
["UBVbv",null,"Buttons zur internen Verwendung der Bewilligenden Stelle"]
["UBVbv"]
["UBVbv"]
["-","-","UBVbv","UBVbv","UBV","UBVbv","UBVbv","UBVbv","UBV","UBV","UBV","UBV","UBVbv","UBV","BV","BV","BV","BV","BV","BV","BV","BV","BVbv","BVbv","Vv","V","V","V","V","V","V","V","Vv","Vv","BV","BV","BVbv","BVbv"]
["UBVbv",null,"Belege",null,null,null,null,null,null,null,null,null,null,null,"von der Bewilligenden Stelle im Rahmen der VWK auszufüllen",null,null,null,null,null,null,null,null,null,"von VOK auszufüllen","von der Bewilligenden Stelle auszufüllen (im Rahmen einer VOK)",null,null,null,null,null,null,null,null,"von der Bewilligenden Stelle auszufüllen"]
["UBVbv","Head","lfd. Nr.","Datum","Plausibilisierungsunterlage für Menge bzw €/ Einheit\n(BelegNr./ RechnungsNr.)\n\n(Nicht verpflichtend auszufüllen)"," Bezeichnung der Ware/ Leistung\n(lt. Beleg/Rechnung)\n\n(Nicht verpflichtend auszufüllen)","Anmerkungen zur Plausibilisierungsunterlage\n\n(Nicht verpflichtend auszufüllen)","Zuordnung zu Teilprojekt\n(falls erforderlich)","Einheit\n(z.B. Stunde, Stück, kg,...)","Menge","€ / Einheit","Kosten","Abzüge in %","eingereichte Kosten","Codierung\n(optional)","nicht anrechenbare zu vermindernde Menge durch VWK","nicht anrechenbarer zu vermindernder Einheitssatz durch VWK","nicht anrechenbare zu vermindernde Abzüge in % durch VWK","verminderte\nKosten nach VWK ","nicht anrechenbare zu sanktionierende Menge durch VWK","nicht anrechenbarer zu sanktionierender Einheitskostensatz durch VWK","nicht anrechenbare zu sanktionierende Abzüge in % durch VWK","anrechenbare\nKosten \nnach VWK","Anmerkung zur VWK","Feststellungen der VOK","nicht anrechenbare zu vermindernde Menge durch VOK","nicht anrechenbarer zu vermindernder Einheitssatz durch VOK","nicht anrechenbare zu vermindernde Abzüge in % durch VOK","verminderte\nKosten nach VOK ","nicht anrechenbare zu sanktionierende Menge durch VOK","nicht anrechenbarer zu sanktionierender Einheitskostensatz durch VOK","nicht anrechenbare zu sanktionierende Abzüge in % durch VOK","anrechenbare\nKosten \nnach VOK","Anmerkung zur VOK","ermittelte Kosten gemäß Art. 35","Sanktion in % gemäß Art. 35","sanktionsrelevante Kosten\ngemäß Art. 35","Anmerkung zur Sanktion gemäß Art. 35 (VO 640/2014)"]
["UBVbv","Receipt",1,null,null,null,null,null,null,null,null,{"$f":"ROUND(J24*K24,2)","v":0},null,{"$f":"ROUND(L24*(1-M24),2)","v":0},null,null,null,null,{"$f":"ROUND((J24-P24)*(K24-Q24)*(1-M24-R24),2)","v":0},null,null,null,{"$f":"ROUND((J24-P24-T24)*(K24-Q24-U24)*(1-M24-R24-V24),2)","v":0},null,null,null,null,null,{"$f":"ROUND((J24-P24-T24-Z24)*(K24-Q24-U24-AA24)*(1-M24-R24-V24-AB24),2)","v":0},null,null,null,{"$f":"ROUND((J24-P24-T24-Z24-AD24)*(K24-Q24-U24-AA24-AE24)*(1-M24-R24-V24-AB24-AF24),2)","v":0},null,{"$f":"AG24","v":0},null,{"$f":"AI24*AJ24","v":0}]
["UBVbv","Receipt",{"$f":"C24+1","v":2},null,null,null,null,null,null,null,null,0,null,0,null,null,null,null,0,null,null,null,0,null,null,null,null,null,0,null,null,null,0,null,0,null,0]
["UBVbv","Receipt",{"$f":"C25+1","v":3},null,null,null,null,null,null,null,null,0,null,0,null,null,null,null,0,null,null,null,0,null,null,null,null,null,0,null,null,null,0,null,0,null,0]
["UBVbv","Receipt",{"$f":"C26+1","v":4},null,null,null,null,null,null,null,null,0,null,0,null,null,null,null,0,null,null,null,0,null,null,null,null,null,0,null,null,null,0,null,0,null,0]
["UBVbv","Receipt",{"$f":"C27+1","v":5},null,null,null,null,null,null,null,null,0,null,0,null,null,null,null,0,null,null,null,0,null,null,null,null,null,0,null,null,null,0,null,0,null,0]
["UBVbv","Receipt",{"$f":"C28+1","v":6},null,null,null,null,null,null,null,null,0,null,0,null,null,null,null,0,null,null,null,0,null,null,null,null,null,0,null,null,null,0,null,0,null,0]
[]
["UBVbv","Receipt",{"$f":"C30+1","v":1},null,null,null,null,null,null,null,null,{"$f":"ROUND(J31*K31,2)","v":0},null,{"$f":"ROUND(L31*(1-M31),2)","v":0},null,null,null,null,{"$f":"ROUND((J31-P31)*(K31-Q31)*(1-M31-R31),2)","v":0},null,null,null,{"$f":"ROUND((J31-P31-T31)*(K31-Q31-U31)*(1-M31-R31-V31),2)","v":0},null,null,null,null,null,{"$f":"ROUND((J31-P31-T31-Z31)*(K31-Q31-U31-AA31)*(1-M31-R31-V31-AB31),2)","v":0},null,null,null,{"$f":"ROUND((J31-P31-T31-Z31-AD31)*(K31-Q31-U31-AA31-AE31)*(1-M31-R31-V31-AB31-AF31),2)","v":0},null,{"$f":"AG31","v":0},null,{"$f":"AI31*AJ31","v":0}]
["-","Tail",{"$f":"C31+1","v":2},null,null,"-- Do NOT Erase Gray Lines --",null,null,null,null,null,{"$f":"J32*K32","v":0},null,{"$f":"L32*(1-M32)","v":0},null,null,null,null,{"$f":"(J32-P32)*(K32-Q32)*(1-M32-R32)","v":0},null,null,null,{"$f":"(J32-P32-T32)*(K32-Q32-U32)*(1-M32-R32-V32)","v":0},null,null,null,null,null,{"$f":"ROUND((J32-P32-T32-Z32)*(K32-Q32-U32-AA32)*(1-M32-R32-V32-AB32),2)","v":0},null,null,null,{"$f":"(J32-P32-T32-Z32-AD32)*(K32-Q32-U32-AA32-AE32)*(1-M32-R32-V32-AB32-AF32)","v":0},null,{"$f":"AG32","v":0},null,{"$f":"AI32*AJ32","v":0}]
["UBVbv",null,null,null,null,null,null,null,null,null,"Gesamtsumme: ",{"$f":"SUM(L24:L32)","v":0},null,{"$f":"SUM(N24:N32)","v":0},null,null,null,null,{"$f":"SUM(S24:S32)","v":0},null,null,null,{"$f":"SUM(W24:W32)","v":0},null,null,null,null,null,{"$f":"SUM(AC24:AC32)","v":0},null,null,null,{"$f":"SUM(AG24:AG32)","v":0},null,null,null,{"$f":"SUM(AK24:AK32)","v":0}]
["U"]
["U"]
["U",null,"Ich bestätige hiermit als Förderungswerber die Richtigkeit der Angaben "]
["U"]
["U"]
["U"]
["U",null,"Ort, Datum",null,null,null,"Unterschrift oder firmenmäßige Zeichnung"]

{"sheet":"TEMPLATE Unbare Sachleistungen","index":9,"n_rows":56,"n_cols":37,"rows_kept":56,"cut":false,"hidden":true,"merged":[[35,33,35,36],[28,2,28,4],[28,6,28,7],[54,2,54,4],[54,6,54,13],[35,13,35,22],[32,2,32,12],[35,2,35,12],[53,2,53,4],[53,6,53,13],[35,24,35,32],[29,2,29,4],[29,6,29,7],[31,2,31,12],[26,2,26,4],[26,6,26,7],[27,2,27,4],[15,2,15,4],[27,6,27,7],[22,2,22,4],[22,6,22,7],[24,6,24,7],[21,2,21,4],[21,6,21,7],[20,2,20,7],[17,2,17,6],[23,2,23,4],[23,6,23,7],[25,2,25,4],[25,6,25,7],[24,2,24,4],[0,2,0,12],[6,2,6,4],[6,5,6,6],[8,2,8,4],[8,5,8,6],[2,2,2,4],[4,5,4,6],[2,5,2,6],[4,2,4,4],[11,2,11,4],[11,5,11,6],[14,2,14,4],[9,2,9,4],[9,5,9,6]]}
["UBVbv",null,"Zahlungsantrag - Belegaufstellung unbare Eigenleistungen (=unbare Sachleistungen)"]
["UBVbv",null,null,null,null,null,null,null,null,null,null,null,"RL/AMA v469.11 / Feb. 2019"]
["UBVbv",null,"Betriebs-/Klientennummer: "]
["UBVbv"]
["UBVbv",null,"Förderungswerber: "]
["UBVbv"]
["UBVbv",null,"Antragsnummer: "]
["UBVbv"]
["UBVbv",null,"Fördergegenstand: "]
[]
["UBVbv"]
["UBVbv",null,"Vorsteuerabzugsberechtigung: ",null,null,{"$f":"F13","v":"Ja"}]
[null,null,null,null,null,{"$f":"IF(G13=1,\"Ja\",\"Nein\")","v":"Ja"},1]
["UBVbv"]
["UBVbv",null,"Genehmigter Zeitraum für  ",null,null,"Beginn","Ende"]
["UBVbv",null,"Kostenanerkennung: "]
["UBVbv"]
["UBVbv",null,"Buttons zur internen Verwendung der Bewilligenden Stelle"]
["UBVbv"]
["UBVbv"]
["UBVbv",null,"Leistungserbringer"]
["UBVbv","Head","Name des Leistungserbringers",null,null,"Verhältnis zum Förderungswerber*","Unterschrift**"]
["UBVbv","Worker"]
["UBVbv","Worker"]
["UBVbv","Worker"]
["UBVbv","Worker"]
["UBVbv","Worker"]
[]
["UBVbv","Worker"]
["-","Tail","-- Do not Erase --"]
["UBVbv"]
["UBVbv",null,"*Zum Beispiel: Verwandtschaftsverhältnis (Eltern, Geschwister, etc.), Teil des Förderungswerbers (z.B. Vereinsmitglied, Genossenschaftsmitglied, Mitglied der Personengemeinschaft etc.)"]
["UBVbv",null,"**Ich (Leistungserbringer) bestätige hiermit, die unten aufgelistete Tätigkeiten für den Förderungswerber durchgeführt zu haben:"]
["UBVbv"]
["-","-","UBVbv","UBV","UBVbv","UBVbv","UBVbv","UBVbv","UBV","UBV","UBV","UBV","UBVbv","BV","BV","BV","BV","BV","BV","BV","BV","BVbv","BVbv","V","V","V","V","V","V","V","V","Vv","Vv","BV","BV","BVbv","BVbv"]
["UBVbv",null,"Belege",null,null,null,null,null,null,null,null,null,null,"von der Bewilligenden Stelle im Rahmen der VWK auszufüllen",null,null,null,null,null,null,null,null,null,"von VOK auszufüllen","von der Bewilligenden Stelle auszufüllen (im Rahmen einer VOK)",null,null,null,null,null,null,null,null,"von der Bewilligenden Stelle auszufüllen"]
["UBVbv","Head","lfd. Nr.","Datum","Leistungserbringer","Art der Leistung /\nTätigkeit bzw.\neingebrachte Sachleistung","Zuordnung zu Teilprojekt\n(falls erforderlich)","Einheit\n(z.B. Stunde, Stück, kg,...)","Menge","beantragter Stunden- / Kostensatz","berechnete Kosten der Eigenleistung","Abzüge in %","eingereichte Kosten","Codierung\n(optional)","nicht anrechenbare zu vermindernde Menge durch VWK","nicht anrechenbarer zu vermindernder Einheitssatz durch VWK","nicht anrechenbare zu vermindernde Abzüge in % durch VWK","verminderte\nKosten nach VWK ","nicht anrechenbare zu sanktionierende Menge durch VWK","nicht anrechenbarer zu sanktionierender Einheitskostensatz durch VWK","nicht anrechenbare zu sanktionierende Abzüge in % durch VWK","anrechenbare\nKosten \nnach VWK","Anmerkung zur VWK","Feststellungen der VOK","nicht anrechenbare zu vermindernde Menge durch VOK","nicht anrechenbarer zu vermindernder Einheitssatz durch VOK","nicht anrechenbare zu vermindernde Abzüge in % durch VOK","verminderte\nKosten nach VOK ","nicht anrechenbare zu sanktionierende Menge durch VOK","nicht anrechenbarer zu sanktionierender Einheitskostensatz durch VOK","nicht anrechenbare zu sanktionierende Abzüge in % durch VOK","anrechenbare\nKosten \nnach VOK","Anmerkung zur VOK","ermittelte Kosten gemäß Art. 35","Sanktion in % gemäß Art. 35","sanktionsrelevante Kosten \ngemäß Art. 35","Anmerkung zur Sanktion gemäß Art. 35 (VO 640/2014)"]
["UBVbv","Receipt",1,null,null,null,null,null,null,null,{"$f":"ROUND(I38*J38,2)","v":0},null,{"$f":"ROUND(K38*(1-L38),2)","v":0},null,null,null,null,{"$f":"ROUND((I38-O38)*(J38-P38)*(1-L38-Q38),2)","v":0},null,null,null,{"$f":"ROUND((I38-O38-S38)*(J38-P38-T38)*(1-L38-Q38-U38),2)","v":0},null,null,null,null,null,{"$f":"ROUND((I38-O38-S38-Y38)*(J38-P38-T38-Z38)*(1-L38-Q38-U38-AA38),2)","v":0},null,null,null,{"$f":"ROUND((I38-O38-S38-Y38-AC38)*(J38-P38-T38-Z38-AD38)*(1-L38-Q38-U38-AA38-AE38),2)","v":0},null,{"$f":"AF38","v":0},null,{"$f":"AH38*AI38","v":0}]
["UBVbv","Receipt",{"$f":"C38+1","v":2},null,null,null,null,null,null,null,0,null,0,null,null,null,null,0,null,null,null,0,null,null,null,null,null,0,null,null,null,0,null,0,null,0]
["UBVbv","Receipt",3,null,null,null,null,null,null,null,0,null,0,null,null,null,null,0,null,null,null,0,null,null,null,null,null,0,null,null,null,0,null,0,null,0]
["UBVbv","Receipt",4,null,null,null,null,null,null,null,0,null,0,null,null,null,null,0,null,null,null,0,null,null,null,null,null,0,null,null,null,0,null,0,null,0]
["UBVbv","Receipt",5,null,null,null,null,null,null,null,0,null,0,null,null,null,null,0,null,null,null,0,null,null,null,null,null,0,null,null,null,0,null,0,null,0]
["UBVbv","Receipt",6,null,null,null,null,null,null,null,0,null,0,null,null,null,null,0,null,null,null,0,null,null,null,null,null,0,null,null,null,0,null,0,null,0]
["UBVbv","Receipt",7,null,null,null,null,null,null,null,0,null,0,null,null,null,null,0,null,null,null,0,null,null,null,null,null,0,null,null,null,0,null,0,null,0]
[]
["UBVbv","Receipt",{"$f":"C45+1","v":1},null,null,null,null,null,null,null,{"$f":"ROUND(I46*J46,2)","v":0},null,{"$f":"ROUND(K46*(1-L46),2)","v":0},null,null,null,null,{"$f":"ROUND((I46-O46)*(J46-P46)*(1-L46-Q46),2)","v":0},null,null,null,{"$f":"ROUND((I46-O46-S46)*(J46-P46-T46)*(1-L46-Q46-U46),2)","v":0},null,null,null,null,null,{"$f":"ROUND((I46-O46-S46-Y46)*(J46-P46-T46-Z46)*(1-L46-Q46-U46-AA46),2)","v":0},null,null,null,{"$f":"ROUND((I46-O46-S46-Y46-AC46)*(J46-P46-T46-Z46-AD46)*(1-L46-Q46-U46-AA46-AE46),2)","v":0},null,{"$f":"AF45","v":0},null,{"$f":"AH46*AI46","v":0}]
["-","Tail",{"$f":"C46+1","v":2},null,"-- Do Not Erase --",null,null,null,null,null,{"$f":"I47*J47","v":0},null,{"$f":"K47*(1-L47)","v":0},null,null,null,null,{"$f":"(I47-O47)*(J47-P47)*(1-L47-Q47)","v":0},null,null,null,{"$f":"(I47-O47-S47)*(J47-P47-T47)*(1-L47-Q47-U47)","v":0},null,null,null,null,null,{"$f":"ROUND((I47-O47-S47-Y47)*(J47-P47-T47-Z47)*(1-L47-Q47-U47-AA47),2)","v":0},null,null,null,{"$f":"(I47-O47-S47-Y47-AC47)*(J47-P47-T47-Z47-AD47)*(1-L47-Q47-U47-AA47-AE47)","v":0},null,{"$f":"AF46","v":0},null,{"$f":"AH47*AI47","v":0}]
["UBVbv",null,null,null,null,null,null,null,null,"Gesamtsumme: ",{"$f":"SUM(K38:K47)","v":0},null,{"$f":"SUM(M38:M47)","v":0},null,null,null,null,{"$f":"SUM(R38:R47)","v":0},null,null,null,{"$f":"SUM(V38:V47)","v":0},null,null,null,null,null,{"$f":"SUM(AB38:AB47)","v":0},null,null,null,{"$f":"SUM(AF38:AF47)","v":0},null,null,null,{"$f":"SUM(AJ38:AJ47)","v":0}]
["U"]
["U"]
["U",null,"Ich bestätige hiermit als Förderungswerber die Richtigkeit der Angaben "]
["U"]
["U"]
["U"]
["U",null,"Ort, Datum",null,null,null,"Unterschrift oder firmenmäßige Zeichnung"]
["U"]

{"sheet":"TEMPLATE Personalkosten","index":10,"n_rows":242,"n_cols":13,"rows_kept":242,"cut":false,"hidden":true,"merged":[[12,4,12,5],[12,6,12,11],[8,4,8,5],[8,6,8,11],[10,4,10,5],[10,6,10,11],[35,0,35,11],[36,0,36,11],[13,4,13,5],[13,6,13,11],[33,0,33,11],[34,0,34,11],[0,10,0,11],[6,4,6,5],[6,6,6,11],[1,0,1,11],[2,0,2,11],[4,4,4,5],[4,6,4,11]]}
[null,null,null,null,null,null,null,null,null,null,"RL/AMA v469.11 / Feb. 2019"]
["Zahlungsantrag - Belegaufstellung Personalkosten"]
[{"$f":"\"inkl. Obergrenzen für \" &D17","v":"inkl. Obergrenzen für 2019"}]
[]
["Kurzbezeichung des Vorhabens  ",null,null,"X"]
[]
["Betriebs-/Klientennummer ",null,null,"X"]
[]
["Förderungswerber ",null,null,"X"]
[]
["Antragsnummer ",null,null,"X"]
[]
["Fördergegenstand ",null,null,"X"]
["Fördergegenstand ",null,null,"X"]
[]
["Bitte wählen Sie ein Abrechungsmodell:",null,null,"D"]
[null,null,"Ja",{"$f":"'TABLE Gehaltsgrenzen'!A1","v":2019}]
[null,null,"Nein",33553408]
[null,null,"No","D"]
[]
[]
[]
[null,null,null,"B"]
[]
[]
[]
[null,null,null,"A"]
[]
[]
[]
[null,null,null,"C"]
[]
[]
["Personalkostenabrechnung auf Ist-Kosten Basis (Stundensatzermittlung)"]
["Personalkostenabrechnung auf Basis von standardisierten Einheitkosten (Lohnnebenkosten auf Ist-Basis)"]
["Personalkostenabrechung auf Ist-Kosten-Basis \n(Mitarbeiter ist für einen bestimmten Zeitraum zu 100% dem Projekt zuordenbar)"]
["Personalkostenabrechnung mit standardisierten Einheitskosten (%-Zuschlag für Lohnnebenkosten)"]
[null,"Type","Valid for","Visible for"]
["MitarbeiterIn (Name)","In","ABCD","ABCD","Name eintragen","Shadow Copy"]
["Jahr für die Berechnung des Stundensatzes (JJJJ)","In","ABCD","ABCD",2016,2016]
["Beginn Zeitraum für die Berechnung des Stundensatzes (TT.MM)","In","ABCD","ABCD","2017-01-01",{"$f":"E41","v":"2017-01-01"}]
["Ende Zeitraum für die Berechung des Stundensatzes (TT.MM)","In","ABCD","ABCD","2017-12-31",{"$f":"E42","v":"2017-12-31"}]
["   Volles Datums des Beginns des Zeitraums zur Stundensatzberechnung (Tagesberechnung)","Calc","ABCD","-",{"$f":"DATE(E40,MONTH(E41),DAY(E41))","v":"2016-01-01"},{"$f":"DATE(F40,MONTH(F41),DAY(F41))","v":"2016-01-01"}]
["   Volles Datum des Endes der Zeitraums zu Stundensatzberechnung (Tagesberechnung)","Calc","ABCD","-",{"$f":"DATE(E40,MONTH(E42),DAY(E42))","v":"2016-12-31"},{"$f":"DATE(F40,MONTH(F42),DAY(F42))","v":"2016-12-31"}]
["   Beginn des Zeitraums zur Stundensatzberechnung im Kalendermonat (Tagesberechnung)","Calc","ABCD","-",{"$f":"IF(AND(MONTH(E43)=2,DAY(E43)>=28),30,MIN(DAY(E43),30))","v":1},{"$f":"IF(AND(MONTH(F43)=2,DAY(F43)>=28),30,MIN(DAY(F43),30))","v":1}]
["   Ende des Zeitraums zur Stundensatzberechnung im Kalendermonat (Tagesberechnung)","Calc","ABCD","-",{"$f":"IF(AND(MONTH(E44)=2,DAY(E44)>=28),30,MIN(DAY(E44),30))","v":30},{"$f":"IF(AND(MONTH(F44)=2,DAY(F44)>=28),30,MIN(DAY(F44),30))","v":30}]
["   Dauer des Zeitraums zur Stundensatzberechnung in Tagen (Tagesberechnung)","Calc","ABCD","-",{"$f":"IF(E44-E43<=28,MAX(0,E44-E43+1),360*(YEAR(E44)-YEAR(E43)) + 30*(MONTH(E44)-MONTH(E43)) + (E46-E45) + 1)","v":360},{"$f":"IF(F44-F43<=28,MAX(0,F44-F43+1),360*(YEAR(F44)-YEAR(F43)) + 30*(MONTH(F44)-MONTH(F43)) + (F46-F45) + 1)","v":360}]
["Anzahl der Monate für die Berechnung des Stundensatzes","In","ABCD","-",12,12]
["   Dauer des Zeitraums zur Stundensatzberechnung in Tagen (Monatsberechnung)","Calc","ABCD","-",{"$f":"30*E48","v":360},{"$f":"30*F48","v":360}]
["Bruttojahresbezug","In","D","D",null,0]
["Dienstvertrag enthält eine Überstundenpauschale (All-In-Vertrag)","In","ABCD","ABCD","Nein","Nein"]
["Wochenarbeitsstunden (bei Bruttojahresbezug)","In","D","D"]
["Pauschalstundensatz (ex. Mode D)","In","-","-"]
["Beginn der Tätigkeit im Kalenderjahr ","In","C","C"]
["Ende der Tätigkeit im Kalenderjahr","In","C","C"]
[null,null,null,"-"]
["förderb. Bruttogehalts(Lohn)kosten in €",null,null,"ABC",{"$f":"SUM(E58:E64)","v":0},{"$f":"SUM(F58:F64)","v":0}]
["Nettogehalt (exkl. Diäten, km-Geld, …) ",null,null,"AC",0,0]
["Nettogehalt (exkl. Diäten, km-Geld, Überstundenentgelt, …)",null,null,"B",0,0]
["Dienstnehmeranteil Sozialversicherung (SV) auf LF",null,null,"ABC",0,0]
["Dienstnehmeranteil Sozialversicherung (SV) auf SZ",null,null,"ABC",0,0]
["Dienstnehmeranteil Lohnsteuer (LST) auf LF",null,null,"ABC",0,0]
["Dienstnehmeranteil Lohnsteuer (LST) auf SZ",null,null,"ABC",0,0]
["sonstige Abzüge (e-card)",null,null,"ABC",0,0]
["nicht förderbare Bruttogehalts(Lohn)kosten in €",null,null,"ABC",{"$f":"E66+E67","v":0},{"$f":"F66+F67","v":0}]
["Überstunden (Grundlohn + Zuschläge)",null,null,"B",0,0]
["sonstige Sonderzahlungen",null,null,"ABC",0,0]
["förderbare Personalnebenkosten DG-Anteil - gesamt in €",null,null,"ABC",{"$f":"SUM(E69:E75)","v":0},{"$f":"SUM(F69:F75)","v":0}]
["Dienstgeberanteil Sozialversicherung (SV) auf LF ",null,null,"ABC",0,0]
["Dienstgeberanteil Sozialversicherung (SV) auf SZ",null,null,"ABC",0,0]
["Dienstgeberbeitrag (DB) zum FLAF",null,null,"ABC",0,0]
["Zuschlag zum Dienstgeberbeitrag (DZ)",null,null,"ABC",0,0]
["Dienstgeberabgabe - U-Bahn-Steuer (nur in Wien)",null,null,"ABC",0,0]
["Kommunalsteuer",null,null,"ABC",0,0]
["Mitarbeiter-/Betriebl. Vorsorgekasse (MV / BV) ",null,null,"ABC",0,0]
["Personalnebenkosten nicht förderbar in €",null,null,"ABC",{"$f":"SUM(E77:E78)","v":0},{"$f":"SUM(F77:F78)","v":0}]
["freiwillige Unternehmensleistungen",null,null,"ABC",0,0]
["Aliquote Nebenkosten f. nicht förderb. Bruttobezüge",null,null,"ABC",{"$f":"IF(E57=0,0,(E65+E77)/(E57+E65+E77)*E68)","v":0},{"$f":"IF(F57=0,0,(F65+F77)/(F57+F65+F77)*F68)","v":0}]
["Summe förderbarer direkter Personalkosten in €",null,null,"ABC",{"$f":"E57+E68-E78","v":0},{"$f":"F57+F68-F78","v":0}]
["Summe förderb. direkter Personalk. f. Tätigkeitszeitraum in €.","Calc","ABC","C",{"$f":"E79*E92/E91","v":0},{"$f":"F79*F92/F91","v":0}]
["Personalkostenobergrenze lt. Dienstkl. 7/II in €","Calc","ABCD","ABC",{"$f":"E114","v":74870},{"$f":"F114","v":74870}]
["Personalkostenobergrenze lt. Dienstkl. 7/II in f. Tätigkeitsz. in €","Calc","C","C",{"$f":"E115","v":74870},{"$f":"F115","v":74870}]
["Wochenarbeitsstunden","In","ABC","ABC",0,0]
["Tatsächlich geleistete Arbeitszeit in Stunden ","Calc","ABCD","A",{"$f":"IF(Labour_SelectedCalcTypeCell=\"A\",E85,E101)","v":1800},{"$f":"IF(Labour_SelectedCalcTypeCell=\"A\",F85,F101)","v":1800}]
["Anwesenheitsstunden inkl. Überstunden","In","A","A",0,0]
[null,null,null,"-"]
["   Bruttobezüge","Calc","ABCD","-",{"$f":"IF(Labour_SelectedCalcTypeCell=\"D\",E50,E80)","v":0},{"$f":"IF(Labour_SelectedCalcTypeCell=\"D\",F50,F80)","v":0}]
["   Beginn der Tätigkeit im Kalendermonat (Mode C)","Calc","C","-",{"$f":"IF(AND(MONTH(E54)=2,DAY(E54)>=28),30,MIN(DAY(E54),30))","v":0},{"$f":"IF(AND(MONTH(F54)=2,DAY(F54)>=28),30,MIN(DAY(F54),30))","v":0}]
["   Ende der Tätigkeit im Kalendermonat (Mode C)","Calc","C","-",{"$f":"IF(AND(MONTH(E55)=2,DAY(E55)>=28),30,MIN(DAY(E55),30))","v":0},{"$f":"IF(AND(MONTH(F55)=2,DAY(F55)>=28),30,MIN(DAY(F55),30))","v":0}]
["   Dauer der Tätigkeit in Tagen (Mode C)","Calc","C","-",{"$f":"360*(YEAR(E55)-YEAR(E54)) + 30*(MONTH(E55)-MONTH(E54)) + (E89-E88) + 1","v":1},{"$f":"360*(YEAR(F55)-YEAR(F54)) + 30*(MONTH(F55)-MONTH(F54)) + (F89-F88) + 1","v":1}]
["   Abgerechnete Tage","Calc","ABCD","-",{"$f":"E47","v":360},{"$f":"F47","v":360}]
["   Dauer der Tätigkeit in Tagen","Calc","ABCD","-",{"$f":"IF(Labour_SelectedCalcTypeCell=\"C\",E90,E91)","v":360},{"$f":"IF(Labour_SelectedCalcTypeCell=\"C\",F90,F91)","v":360}]
["   Wochenarbeitsstunden Vollzeit","Const.","ABCD","-",40,40]
["  Jahresarbeitsstunden Vollzeit (ohne Überstunden)","Const.","ABCD","-",1800,1800]
["  Jahresarbeitsstunden Vollzeit (All-In-Dienstverträge)","Const.","D","-",1980,1980]
["  max. abrechenbare Überstunden (Nicht All-In-Dienstverträge)","Const.","D","-",180,180]
["  Jahresarbeitsstunden Vollzeit (f. realen Vertrag)","Calc","ABCD","-",{"$f":"IF(UPPER(E51)=\"JA\",E95,E94)","v":1800},{"$f":"IF(UPPER(F51)=\"JA\",F95,F94)","v":1800}]
["   Wochenarbeitsstunden Teilzeit","Calc","ABCD","-",{"$f":"IF(Labour_SelectedCalcTypeCell=\"D\",MIN(E52,E93),MIN(E83,E93))","v":40},{"$f":"IF(Labour_SelectedCalcTypeCell=\"D\",MIN(F52,F93),MIN(F83,F93))","v":40}]
["  Jahresarbeitsstunden Teilzeit (f. realen Vertrag)","Calc","ABCD","-",{"$f":"E97*E98/E93","v":1800},{"$f":"F97*F98/F93","v":1800}]
["   Arbeitsstunden Teilzeit / Abrechnungszeitraum (f. realen Vertrag)","Calc","ABCD","-",{"$f":"E99*E91/360","v":1800},{"$f":"F99*F91/360","v":1800}]
["   Arbeitsstunden Teilzeit / Tätigkeitszeitraum (f. realen Vertrag)","Calc","ABCD","-",{"$f":"IF(Labour_SelectedCalcTypeCell=\"A\",E85,E99*E92/360)","v":1800},{"$f":"IF(Labour_SelectedCalcTypeCell=\"A\",F85,F99*F92/360)","v":1800}]
["   Bruttobezug pro Jahr (f. reale Wochenarbeitsstunden)","Calc","D",null,{"$f":"E87 * (360/E91)","v":0},{"$f":"F87 * (360/F91)","v":0}]
["   Bruttobezug pro Jahr Vollzeitäquivalent","Calc","D","-",{"$f":"IF(E98=0,0,E102 * (E93/E98))","v":0},{"$f":"IF(F98=0,0,F102 * (F93/F98))","v":0}]
["   Bruttobezug in €/Std","Calc","D","-",{"$f":" ROUND(IF(E101=0,0,E87 / E101),5)","v":0},{"$f":"ROUND(IF(F101=0,0,F87 / F101),5)","v":0}]
["   Lohnkosten Teilzeit / Jahr (inkl. Lohnnebenkosten)","Calc","D","-",{"$f":"(1.09 * E102 + 0.21 * MIN(E102,E109))","v":0},{"$f":"(1.09 * F102 + 0.21 * MIN(F102,E109))","v":0}]
["   Lohnkosten Teilzeit / Abrechnungszeitraum (inkl. Lohnnebenkosten)","Calc","ABD","-",{"$f":"IF(Labour_SelectedCalcTypeCell<=\"B\",E79,E105*E91/360)","v":0},{"$f":"IF(Labour_SelectedCalcTypeCell<=\"B\",F79,F105*F91/360)","v":0}]
["   Lohnkosten in €/Std (inkl. Lohnnebenkosten)","Calc","D","-",{"$f":"ROUND(IF(E101=0,0,E106 / E101),5)","v":0},{"$f":"ROUND(IF(F101=0,0,F106 / F101),5)","v":0}]
["   Referenzjahr für Höchstbemessungsgrundlage / Gehalt für Bundesbeamte","Calc","ABCD","-",{"$f":"IF(Labour_SelectedCalcTypeCell=\"C\",E40,E144)","v":2016},{"$f":"IF(Labour_SelectedCalcTypeCell=\"C\",F40,F144)","v":2016}]
["   ASVG Höchstbemessungsgrundlage ","Lookup","ABCD","-",{"$f":"VLOOKUP(E108,'TABLE Gehaltsgrenzen'!$A$3:$C$19,3)","v":68040},{"$f":"VLOOKUP(F108,'TABLE Gehaltsgrenzen'!$A$3:$C$19,3)","v":68040}]
["   Gehalt für Bundesbeamte der allgem.Verwaltung Dienstklasse VII/2","Lookup","ABCD","-",{"$f":"VLOOKUP(E108,'TABLE Gehaltsgrenzen'!$A$3:$C$19,2)","v":74870},{"$f":"VLOOKUP(F108,'TABLE Gehaltsgrenzen'!$A$3:$C$19,2)","v":74870}]
["   Gehalt für Bundesbeamte VII/2 ggf. mit Überstd. (f. realen Vertrag)","Calc ","ABD","-",{"$f":"IF(UPPER(E51)=\"JA\",E110*E95/E94,E110)","v":74870},{"$f":"IF(UPPER(F51)=\"JA\",F110*F95/F94,F110)","v":74870}]
["   Arbeitsstunden Teilzeit / Tätigkeitszeitraum (f. Beamte)","Calc","ABCD",null,{"$f":"IF(Labour_SelectedCalcTypeCell=\"A\",E85,E97*E92/360*E98/E93)","v":1800},{"$f":"IF(Labour_SelectedCalcTypeCell=\"A\",F85,F97*F92/360*F98/F93)","v":1800}]
["   Jahresgehalt für Beamte Teilzeit in €/Jahr","Calc","ABCD","-",{"$f":"E111*E98/E93","v":74870},{"$f":"F111*F98/F93","v":74870}]
["   Gehalt für Beamte Dienstkl. VII/2 - Teilzeit in € / Abrechnungszeitraum","Calc","ABCD","-",{"$f":"E113*E91/360","v":74870},{"$f":"F113*F91/360","v":74870}]
["   Gehalt für Beamte Dienstkl. VII/2 - Teilzeit in € / Tätigkeitszeitraum","Calc","ABCD","-",{"$f":"E113*E92/360","v":74870},{"$f":"F113*F92/360","v":74870}]
["   Stundenlohn für Beamte lt Dienstkl. VII/2 in €/Std","Calc","ABCD","-",{"$f":"ROUND(IF(E112=0,0,E114/E112),5)","v":41.594439999999999},{"$f":"ROUND(IF(F112=0,0,F114/F112),5)","v":41.594439999999999}]
["Berechneter Stundensatz in €/Std","Calc","D","D",{"$f":"E107","v":0},{"$f":"F107","v":0}]
["Personalkostenobergrenze lt. Dienstkl. VII/2 in €/Std","Calc","D","D",{"$f":"E116","v":41.594439999999999},{"$f":"F116","v":41.594439999999999}]
["Anrechenbarer Stundensatz in €/Std","Calc","D","D",{"$f":"MIN(E117,E118)","v":0},{"$f":"MIN(F117,F118)","v":0}]
[null,null,null,"-"]
["Berechneter Stundensatz in €/Std","Calc","AB","AB",{"$f":"IF(E84=0,0,E79/E84)","v":0},{"$f":"IF(F84=0,0,F79/F84)","v":0}]
["Stundenlohn für Beamte lt Dienstkl. VII/2 in €/Std","Calc","AB","AB",{"$f":"IF(Labour_SelectedCalcTypeCell=\"A\",IF(E84=0,0,ROUND(E81/E84,5)),E116)","v":41.594439999999999},{"$f":"IF(Labour_SelectedCalcTypeCell=\"A\",IF(F84=0,0,ROUND(F81/F84,5)),F116)","v":41.594439999999999}]
["Anrechenbarer Stundensatz in €","Calc","ABD","AB",{"$f":" IF(Labour_SelectedCalcTypeCell=\"D\",E119,ROUND(MIN(E121,E122),5))","v":0},{"$f":"E123","v":0}]
["Anrechenbarer Stundensatz in € nach VWK durch BST","Calc","ABD","AB",{"$f":"E123","v":0},{"$f":" IF(Labour_SelectedCalcTypeCell=\"D\",F119,ROUND(IF(F84=0,0,MIN(F121,F122)),5))","v":0}]
["anrechenbare Personalkosten in €","Calc","C","C",{"$f":"ROUND(MIN(E79,E81)*E90/E91,2)","v":0},{"$f":"E125","v":0}]
["anrechenbare Personalkosten nach VWK in €","Calc","C","C",{"$f":"E125","v":0},{"$f":"ROUND(MIN(F79,F81)*F90/F91,2)","v":0}]
["Abzüge in % (zB nicht förderbarer Gebietskörperschaftsanteil)","In","C","C",0,0]
["eingereichte anrechenb. Personalkosten in €","Calc","C","C",{"$f":"ROUND(E125 *(1-E127),2)","v":0},{"$f":"ROUND(F125*(1-F127),2)","v":0},{"$f":"E128","v":0},{"$f":"F128","v":0},null,null,null,null,{"$f":"IF(Labour_DataSubmittedCell=\"No\",G128,H128)","v":0}]
["eingereichte anrechenb. Personalkosten nach VWK in €","Calc","C","C",{"$f":"ROUND(E126*(1-E127),2)","v":0},{"$f":"ROUND(F126*(1-F127),2)","v":0},{"$f":"E129","v":0},{"$f":"F129","v":0},null,null,null,null,{"$f":"IF(Labour_DataSubmittedCell=\"No\",G129,H129)","v":0}]
["eingereichte anrechenb. Gemeinkosten (Pauschalsatz in %)","Calc","C","C",0,0]
["eingereichte anrechenb. Gemeinkosten in €","Calc","C","C",{"$f":"ROUND(E128*E130,2)","v":0},{"$f":"ROUND(F129*F130,2)","v":0},{"$f":"E131","v":0},0,null,null,null,null,{"$f":"IF(Labour_DataSubmittedCell=\"No\",G131,H131)","v":0}]
["eingereichte anrechenb. Gemeinkosten in € nach VWK","Calc","C","-",{"$f":"ROUND(E131,2)","v":0},{"$f":"ROUND(F129*F130,2)","v":0},0,0,null,null,null,null,{"$f":"IF(Labour_DataSubmittedCell=\"No\",G132,H132)","v":0}]
["einger. anrechenb. Personalkosten inkl. Gemeinkosten in €","Calc","C","C",{"$f":"ROUND(E128+E131,2)","v":0},{"$f":"ROUND(F128+F131,2)","v":0},0,0,null,null,null,null,{"$f":"IF(Labour_DataSubmittedCell=\"No\",G133,H133)","v":0}]
["einger. anrechenb. Personalkosten inkl. Gemeink. nach VWK","Calc","C","C",{"$f":"ROUND(E129*(1+E130),2)","v":0},{"$f":"ROUND(F129*(1+F130),2)","v":0},0,0,null,null,null,null,{"$f":"IF(Labour_DataSubmittedCell=\"No\",G134,H134)","v":0}]
[null,null,null,"ABCD"]
["Berechnete Überweisungen laut Jahreslohnkonto",null,null,"AC",{"$f":"E40","v":2016},{"$f":"F40","v":2016}]
["Sozialversicherung",null,null,"AC",{"$f":"E60+E61+E64+E69+E70+E75","v":0},{"$f":"F60+F61+F64+F69+F70+F75","v":0}]
["Finanzamt",null,null,"AC",{"$f":"E62+E63+E71+E72","v":0},{"$f":"F62+F63+F71+F72","v":0}]
["Kommunalsteuer",null,null,"AC",{"$f":"E74","v":0},{"$f":"F74","v":0}]
["Nettogehalt",null,null,"AC",{"$f":"E58+E59","v":0},{"$f":"F58+F59","v":0}]
["Summe",null,null,"AC",{"$f":"SUM(E137:E140)","v":0},{"$f":"SUM(F137:F140)","v":0}]
[null,null,null,"AC"]
["Gesamtstundenübersicht",null,null,"ABD"]
["Abgerechnete Tätigkeiten beziehen sich auf das Jahr (JJJJ)",null,null,"ABD",{"$f":"E40","v":2016},{"$f":"E144","v":2016}]
["Beginn des Beschäftigungszeitraums im Kalenderjahr (TT.MM)","In","ABD","ABD","2016-01-01",{"$f":"E145","v":"2016-01-01"}]
["Ende des Beschäftigungszeitraums im Kalenderjahr (TT.MM)","In","ABD","ABD","2016-12-31",{"$f":"E146","v":"2016-12-31"}]
["   Volles Datum des Beginns der Beschäftigung (Tagesberechnung - Mode ABD)","Calc","ABD","-",{"$f":"DATE(E144,MONTH(E145),DAY(E145))","v":"2016-01-01"},{"$f":"DATE(F144,MONTH(F145),DAY(F145))","v":"2016-01-01"}]
["   Volles Datum des Endes der Beschäftigung (Tagesberechnung - Mode ABD)","Calc","ABD","-",{"$f":"DATE(E144,MONTH(E146),DAY(E146))","v":"2016-12-31"},{"$f":"DATE(F144,MONTH(F146),DAY(F146))","v":"2016-12-31"}]
["   Beginn der Beschäftigung im Kalendermonat (Tagesberechnung - Mode ABD)","Calc","ABD","-",{"$f":"IF(AND(MONTH(E147)=2,DAY(E147)>=28),30,MIN(DAY(E147),30))","v":1},{"$f":"IF(AND(MONTH(F147)=2,DAY(F147)>=28),30,MIN(DAY(F147),30))","v":1}]
["   Ende der Beschäftigung im Kalendermonat (Tagesberechnung - Mode ABD)","Calc","ABD","-",{"$f":"IF(AND(MONTH(E148)=2,DAY(E148)>=28),30,MIN(DAY(E148),30))","v":30},{"$f":"IF(AND(MONTH(F148)=2,DAY(F148)>=28),30,MIN(DAY(F148),30))","v":30}]
["   Dauer der Beschäftigung in Tagen (Tagesberechnung - Mode ABD)","Calc","ABD","-",{"$f":"IF(E148-E147<=28,MAX(0,E148-E147+1),360*(YEAR(E148)-YEAR(E147)) + 30*(MONTH(E148)-MONTH(E147)) + (E150-E149) + 1)","v":360},{"$f":"IF(F148-F147<=28,MAX(0,F148-F147+1),360*(YEAR(F148)-YEAR(F147)) + 30*(MONTH(F148)-MONTH(F147)) + (F150-F149) + 1)","v":360}]
["Anzahl der beschäftigten Monate (max. 12 Monate / Mitarbeiter) ","Obsolete","ABD","-",12,12]
["   Dauer der Tätigkeit in Tagen (Monatsberechnung - Mode ABD)","Calc","ABD","-",{"$f":"30*MIN(E152,12)","v":360},{"$f":"30*MIN(F152,12)","v":360}]
["Bruttobezug enthält ausbezahlte Überstd. (max. 180 Std./Jahr)","In","ABD","ABD","Nein","Nein"]
["Anzahl der Wochenarbeitsstunden ",null,null,"ABD"]
[{"$f":"\"Für \" & IF(TRIM(G13)=\"\",IF(TRIM(G5)=\"\",\"dieses Vorhaben\",G5),G13) & \" geleistete Stunden\"","v":"Für dieses Vorhaben geleistete Stunden"},null,null,"ABD",null,0]
[{"$f":"\"Summe der bereits für \" & IF(TRIM(G13)=\"\",IF(TRIM(G5)=\"\",\"dieses Vorhaben\",G5),G13) & \" abgerechnete Stunden\"","v":"Summe der bereits für dieses Vorhaben abgerechnete Stunden"},null,null,"ABD",null,0]
["  Max. akzeptable Arbeitsstunden (Vollzeit / Jahr)",null,"ABD","-",{"$f":"(IF(E51=\"Ja\",E95,IF(E154=\"Ja\",E94+E96,E94)))","v":1800},{"$f":"(IF(F51=\"Ja\",F95,IF(F154=\"Ja\",F94+F96,F94)))","v":1800}]
["  Max. akzeptable Arbeitsstunden (Teilzeit / Jahr)",null,"ABD","-",{"$f":"E158*MIN(E155,E93)/E93","v":1800},{"$f":"F158*MIN(F155,F93)/F93","v":1800}]
["  Max. akzeptable Arbeitsstunden (Teilzeit / Beschäftigungszeitraum)",null,"ABD","-",{"$f":"E159*MIN(E151,360)/360","v":1800},{"$f":"F159*MIN(F151,360)/360","v":1800}]
["  Akzeptable, tatsächlich gearbeitete Stunden",null,"ABD","-",{"$f":"IF(Labour_SelectedCalcTypeCell<>\"A\",E160,MIN(E160,E84))","v":1800},{"$f":"IF(Labour_SelectedCalcTypeCell<>\"A\",F160,MIN(F160,F84))","v":1800}]
["  Noch verfügbare akzeptable Arbeitsstunden für dieses Vorhaben",null,"ABD","-",{"$f":"MAX(E161-E157,0)","v":1800},{"$f":"MAX(F161-F157,0)","v":1800}]
["Dummy Line - Do not Use - Do not Erase",null,null,"Proj",0,0]
["Stunden für sonstige Projekte",null,null,"Proj-ABD",0,0]
["z.Bsp: Projekt Qualifizierung",null,null,"Proj-ABD",0,0]
["z.Bsp: Projekt Vierkanter",null,null,"Proj-ABD",0,0]
[null,null,null,"Proj-ABD",0,0]
[]
[null,null,null,"Proj",0,0]
["Dummy Line - Do not Use - Do not Erase",null,null,"Proj",0,0]
["Summe über alle Projekte im Abrechnungsjahr",null,null,"ABD",{"$f":"E156 + E157 + SUM(E163:E170)","v":0},{"$f":"F156 + F157 + SUM(F163:F170)","v":0}]
["Tatsächlich geleistete Arbeitsstunden",null,null,"A",{"$f":"E84","v":1800},{"$f":"F84","v":1800}]
["Faktor: durchschnittliche Jahresleistungsstunden",null,null,"BD",{"$f":"E160","v":1800},{"$f":"F160","v":1800}]
["Tatsächlich geleistete Arbeitsstunden",null,"ABD","-",{"$f":"E156","v":0},{"$f":"F156","v":0}]
["Akzeptierte geleistete Arbeitsstunden",null,null,"-",{"$f":"MIN(E156,E162)","v":1800},{"$f":"MIN(F156,F162)","v":0}]
["eingereichte Personalkosten (ohne Obergrenze)",null,"ABD","ABD",{"$f":"ROUND(MIN(E156,E162)*E117,2)","v":0},{"$f":"ROUND(MIN(F156,F162)*F117,2)","v":0},{"$f":"E176","v":0},{"$f":"F176","v":0},null,null,null,null,{"$f":"IF(Labour_DataSubmittedCell=\"No\",G176,H176)","v":0}]
["Personalkostenobergrenze lt. Dienstkl. VII/2",null,"ABD","ABD",{"$f":"E175*E118","v":74869.991999999998},{"$f":"F175*F118","v":0}]
["anrechenbare Personalkosten",null,null,"ABD",{"$f":"ROUND(MIN(E176:E177),2)","v":0},{"$f":"ROUND(MIN(F176:F177),2)","v":0}]
["Abzüge in % (zB nicht förderbarer Gebietskörperschaftsanteil)",null,null,"ABD",0,0]
["eingereichte Personalkosten",null,null,"ABD",{"$f":"ROUND(E178*(1-E179),2)","v":0},{"$f":"ROUND(F178*(1-F179),2)","v":0},{"$f":"E180","v":0},{"$f":"F180","v":0},null,null,null,null,{"$f":"IF(Labour_DataSubmittedCell=\"No\",G180,H180)","v":0}]
["Pauschalsatz in % (für Gemeinkosten)",null,null,"ABD",0,0]
["eingereichte Gemeinkosten in €",null,null,"ABD",{"$f":"ROUND(E180*E181,2)","v":0},{"$f":"ROUND(F180*F181,2)","v":0},{"$f":"E182","v":0},{"$f":"F182","v":0},null,null,null,null,{"$f":"IF(Labour_DataSubmittedCell=\"No\",G182,H182)","v":0}]
["eingereichte Personalkosten inkl. Gemeink. in €",null,null,"ABD",{"$f":"E180+E182","v":0},{"$f":"F180+F182","v":0},{"$f":"E183","v":0},{"$f":"F183","v":0},null,null,null,null,{"$f":"IF(Labour_DataSubmittedCell=\"No\",G183,H183)","v":0}]
[null,null,null,"ABD"]
["Warnung: Durch das Klicken auf \"Eingabe abschließen\" werden\nalle obigen Felder gesperrt. Es sind danach keine Änderungen oder Ergänzungen mehr möglich!",null,null,"ABCD"]
[null,null,null,"ABCD"]
[null,null,null,"ABCD"]
[null,null,null,"ABCD"]
[null,"Ja",null,"ABCD"]
[null,"Nein",null,"ABCD"]
["Eingabe abgeschlossen am 5. Mai 2017 (11:45)",null,null,"ABCD"]
[null,null,null,"ABCD"]
[null,null,null,"ABCD"]
[null,null,null,"ABCD"]
[null,null,null,"ABCD"]
["Unterschrift",null,null,"ABCD"]
[null,null,null,"ABCD"]
[null,null,null,"ABCD"]
["Von BST im Rahmen der VWK auszufüllen",null,null,"ABCD",null,null,"Summe","Summe"]
["    Stundensatz lt. FW in €/Std",null,"ABCD","-",{"$f":"IF(Labour_SelectedCalcTypeCell=\"C\",IF(E101<=0,0,ROUND(E125/E101,5)),E123)","v":0},{"$f":"E200","v":0}]
["    Stundensatz nach VWK in €/Std",null,"ABCD","-",{"$f":"E200","v":0},{"$f":"IF(Labour_SelectedCalcTypeCell=\"C\",IF(F101<=0,0,ROUND(F126/F101,5)),F124)","v":0}]
["    Stunden lt. Förderwerber",null,"ABCD","-",{"$f":"IF(Labour_SelectedCalcTypeCell=\"C\",E101,E174)","v":0},{"$f":"IF(Labour_SelectedCalcTypeCell=\"C\",F101,F174)","v":0}]
["    Stunden maximal",null,"ABCD","-",{"$f":"E162","v":1800},{"$f":"F162","v":1800}]
["    Stunden effektiv",null,"ABCD","-",{"$f":"MAX(E202:E203)","v":1800},{"$f":"MAX(F202:F203)","v":1800}]
["    Abzüge in % (zB nicht förderbarer Gebietskörperschaftsanteil)",null,"ABCD","-",{"$f":"IF(Labour_SelectedCalcTypeCell=\"C\",E127,E179)","v":0},{"$f":"IF(Labour_SelectedCalcTypeCell=\"C\",F127,F179)","v":0}]
["    Gemeinskostensatz",null,"ABCD","-",{"$f":"IF(Labour_SelectedCalcTypeCell=\"C\",E130,E181)","v":0},{"$f":"IF(Labour_SelectedCalcTypeCell=\"C\",F130,F181)","v":0}]
["Anzahl der zu vermindernden Stunden durch VWK",null,null,"ABCD",0,0,{"$f":"E207","v":0},{"$f":"G207","v":0},null,null,null,null,{"$f":"IF(Labour_DataSubmittedCell=\"No\",G207,H207)","v":0}]
["Abzüge in % vermindert durch VWK",null,null,"ABCD",0,0]
["Anzahl der sanktionsrelevant zu vermindernden Stunden durch VWK",null,null,"ABCD",0,0,{"$f":"E209","v":0},{"$f":"G209","v":0},null,null,null,null,{"$f":"IF(Labour_DataSubmittedCell=\"No\",G209,H209)","v":0}]
["Abzüge in % sanktionsrelevant durch VWK",null,null,"ABCD",0,0]
[null,null,null,"ABCD"]
["förderbare Personalkosten eingereicht laut FW",null,null,"-",{"$f":"ROUND(MIN(E202,E203)*E200*(1-E205),2)","v":0},{"$f":"ROUND(MIN(F202,F203)*F200*(1-F205),2)","v":0},{"$f":"E212","v":0},{"$f":"G212","v":0},null,null,null,null,{"$f":"IF(Labour_DataSubmittedCell=\"No\",G212,H212)","v":0}]
["verminderte Personalkosten nach VWK",null,null,"ABCD",{"$f":"ROUND(MAX(0,MIN((E202-E207),E203)*E200)*(1-E205-E208),2)","v":0},{"$f":"ROUND(MAX(0,MIN((F202-F207),F203)*F201)*(1-F205-F208),2)","v":0},{"$f":"E213","v":0},{"$f":"G213","v":0},null,null,null,null,{"$f":"IF(Labour_DataSubmittedCell=\"No\",G213,H213)","v":0}]
["anrechenbare Personalkosten nach VWK",null,null,"ABCD",{"$f":"ROUND(MAX(0,MIN((E202-E207-E209),E203)*E200)*(1-E205-E208-E210),2)","v":0},{"$f":"ROUND(MAX(0,MIN((F202-F207-F209),F203)*F201)*(1-F205-F208-F210),2)","v":0},{"$f":"E214","v":0},{"$f":"G214","v":0},null,null,null,null,{"$f":"IF(Labour_DataSubmittedCell=\"No\",G214,H214)","v":0}]
[null,null,null,"ABCD"]
["förderbare Personalkosten inkl. Gemeinkosten eingereicht laut FW",null,null,"-",{"$f":"ROUND(E212*(1+E206),2)","v":0},{"$f":"ROUND(F212*(1+F206),2)","v":0},{"$f":"E216","v":0},{"$f":"G216","v":0},null,null,null,null,{"$f":"IF(Labour_DataSubmittedCell=\"No\",G216,H216)","v":0}]
["verminderte Personalkosten inkl. Gemeinkosten nach VWK",null,null,"ABCD",{"$f":"ROUND(E213*(1+E206),2)","v":0},{"$f":"ROUND(F213*(1+F206),2)","v":0},{"$f":"E217","v":0},{"$f":"G217","v":0},null,null,null,null,{"$f":"IF(Labour_DataSubmittedCell=\"No\",G217,H217)","v":0}]
["anrechenbare Personalkosten inkl. Gemeinkosten nach VWK",null,null,"ABCD",{"$f":"ROUND(E214*(1+E206),2)","v":0},{"$f":"ROUND(F214*(1+F206),2)","v":0},{"$f":"E218","v":0},{"$f":"G218","v":0},null,null,null,null,{"$f":"IF(Labour_DataSubmittedCell=\"No\",G218,H218)","v":0}]
[null,null,null,"ABCD"]
["Anzahl der zu vermindernden Stunden durch VOK",null,null,"ABCD",0,0,{"$f":"E220","v":0},{"$f":"G220","v":0},null,null,null,null,{"$f":"IF(Labour_DataSubmittedCell=\"No\",G220,H220)","v":0}]
["Abzüge in % vermindert durch VOK",null,null,"ABCD",0,0]
["Anzahl der sanktionsrelevant zu vermindernden Stunden durch VOK",null,null,"ABCD",0,0,{"$f":"E222","v":0},{"$f":"G222","v":0},null,null,null,null,{"$f":"IF(Labour_DataSubmittedCell=\"No\",G222,H222)","v":0}]
["Abzüge in % sanktionsrelevant durch VOK",null,null,"ABCD",0,0]
[{"$f":"COUNT(E220:F220)+COUNT(E221:F221)","v":4},null,null,"-",null,null,null,{"$f":"G224","v":0},null,null,null,null,{"$f":"IF(Labour_DataSubmittedCell=\"No\",G224,H224)","v":0}]
[{"$f":"COUNT(E220:F222)+COUNT(E223:F223)","v":8},null,null,"-",null,null,null,{"$f":"G225","v":0},null,null,null,null,{"$f":"IF(Labour_DataSubmittedCell=\"No\",G225,H225)","v":0}]
[null,null,null,"ABCD"]
["verminderte Personalkosten nach VOK",null,null,"ABCD",{"$f":"IF($A224>0,ROUND(MAX(0,MIN((E202-E207-E209-E220),E203)*E200)*(1-E205-E208-E210-E221),2),0)","v":0},{"$f":"IF($A225>0,ROUND(MAX(0,MIN((F202-F207-F209-F220),F203)*F201)*(1-F205-F208-F210-F221),2),0)","v":0},{"$f":"E227","v":0},{"$f":"G227","v":0},null,null,null,null,{"$f":"IF(Labour_DataSubmittedCell=\"No\",G227,H227)","v":0}]
["anrechenbare Personalkosten nach VOK",null,null,"ABCD",{"$f":"IF($A224>0,ROUND(MAX(0,MIN((E202-E207-E209-E220-E222),E203)*E200)*(1-E205-E208-E210-E221-E223),2),0)","v":0},{"$f":"IF($A225>0,ROUND(MAX(0,MIN((F202-F207-F209-F220-F222),F203)*F201)*(1-F205-F208-F210-F221-F223),2),0)","v":0},{"$f":"E228","v":0},{"$f":"G228","v":0},null,null,null,null,{"$f":"IF(Labour_DataSubmittedCell=\"No\",G228,H228)","v":0}]
[null,null,null,"ABCD"]
["verminderte Personalkosten inkl. Gemeinkosten nach VOK",null,null,"ABCD",{"$f":"IF(E227=\"\",0,ROUND(E227*(1+E206),2))","v":0},{"$f":"IF(F227=\"\",0,ROUND(F227*(1+F206),2))","v":0},{"$f":"E230","v":0},{"$f":"G230","v":0},null,null,null,null,{"$f":"IF(Labour_DataSubmittedCell=\"No\",G230,H230)","v":0}]
["anrechenbare Personalkosten inkl. Gemeinkosten nach VOK",null,null,"ABCD",{"$f":"IF(E228=\"\",0,ROUND(E228*(1+E206),2))","v":0},{"$f":"IF(F228=\"\",0,ROUND(F228*(1+F206),2))","v":0},{"$f":"E231","v":0},{"$f":"G231","v":0},null,null,null,null,{"$f":"IF(Labour_DataSubmittedCell=\"No\",G231,H231)","v":0}]
[null,null,null,"ABCD"]
["Anzahl ermittelte Stunden gemäß Art. 35",null,null,"ABCD",{"$f":"IF(E200=0,0,E228/E200)","v":0},{"$f":"IF(F201=0,0,F228/F201)","v":0}]
["ermittelte Kosten gemäß Art. 35 VWK",null,null,"-",{"$f":"E214","v":0},{"$f":"F214","v":0},{"$f":"E234","v":0},{"$f":"F234","v":0},null,null,null,null,{"$f":"IF(Labour_DataSubmittedCell=\"No\",G234,H234)","v":0}]
["ermittelte Kosten gemäß Art. 35",null,null,"ABCD",{"$f":"E233*E200","v":0},{"$f":"F233*F201","v":0},{"$f":"E235","v":0},{"$f":"F235","v":0},null,null,null,null,{"$f":"IF(Labour_DataSubmittedCell=\"No\",G235,H235)","v":0}]
["Sanktion in % gemäß Art. 35 (VO 640/2014)",null,null,"ABCD",null,null,{"$f":"E236","v":0}]
["sanktionsrelevante Kosten gemäß Art. 35 VWK ",null,null,"-",{"$f":"E234*E236","v":0},{"$f":"F234*F236","v":0},{"$f":"E237","v":0},{"$f":"F237","v":0},null,null,null,null,{"$f":"IF(Labour_DataSubmittedCell=\"No\",G237,H237)","v":0}]
["sanktionsrelevante Kosten gemäß Art. 35",null,null,"ABCD",{"$f":"E235*E236","v":0},{"$f":"F235*F236","v":0},{"$f":"E238","v":0},{"$f":"F238","v":0},null,null,null,null,{"$f":"IF(Labour_DataSubmittedCell=\"No\",G238,H238)","v":0}]
["sanktionsrelevante Kosten gemäß Art. 35 VWK Gemeinkosten",null,null,"-",{"$f":"E237*E206","v":0},{"$f":"F237*F206","v":0},{"$f":"E239","v":0},{"$f":"F239","v":0},null,null,null,null,{"$f":"IF(Labour_DataSubmittedCell=\"No\",G239,H239)","v":0}]
["sanktionsrelevante Kosten gemäß Art. 35 Gemeinkosten",null,null,"ABCD",{"$f":"E238*E206","v":0},{"$f":"F238*F206","v":0},{"$f":"E240","v":0},{"$f":"F240","v":0},null,null,null,null,{"$f":"IF(Labour_DataSubmittedCell=\"No\",G240,H240)","v":0}]
[null,null,null,"ABCD"]
["Verwendete Abkürzungen:\n   FW ….. Förderungswerber\n   BST .... Bewilligende Stelle\n   VWK .. Verwaltungskontrolle\n   VOK … Vor-Ort-Kontrolle",null,null,"ABCD"]

{"sheet":"Notizen","index":11,"n_rows":16,"n_cols":12,"rows_kept":16,"cut":false,"hidden":false,"merged":[[6,0,6,2],[6,3,6,6],[0,0,0,11],[2,0,2,2],[2,3,2,6],[4,0,4,2],[4,3,4,6],[13,0,13,2],[13,3,13,4],[13,5,13,6],[8,0,8,2],[8,3,8,6],[10,0,10,2],[10,3,10,6],[12,0,12,2],[12,3,12,4],[12,5,12,6]]}
["Zahlungsantrag - Notizen und Anmerkungen"]
[null,null,null,null,null,null,null,null,null,null,null,"RL/AMA v469.11 / Feb. 2019"]
["Betriebs-/Klientennummer: ",null,null,{"$f":"TRIM('Auswahl Belegaufstellungen'!Stm_ApplicantID)","v":""}]
[]
["Förderungswerber: ",null,null,{"$f":"TRIM('Auswahl Belegaufstellungen'!Stm_ApplicantName)","v":""}]
[]
["Antragsnummer: ",null,null,{"$f":"TRIM('Auswahl Belegaufstellungen'!Stm_ApplicationID)","v":""}]
[]
["Fördergegenstand: "]
[]
["Vorsteuerabzugsberechtigung: ",null,null,{"$f":"TRIM('Auswahl Belegaufstellungen'!Stm_TaxDeduct)","v":"Ja"}]
[]
["Genehmigter Zeitraum für  ",null,null,"Beginn",null,"Ende"]
["Kostenanerkennung: ",null,null,{"$f":"IF(TRIM('Auswahl Belegaufstellungen'!Stm_SupportPeriodStart)=\"\",\"\",'Auswahl Belegaufstellungen'!Stm_SupportPeriodStart)","v":""},null,{"$f":"IF(TRIM('Auswahl Belegaufstellungen'!Stm_SupportPeriodEnd)=\"\",\"\",'Auswahl Belegaufstellungen'!Stm_SupportPeriodEnd)","v":""}]
[]
["Hier ist Raum für freie Notizen, Anmerkungen und Nebenrechnungen…"]

{"sheet":"TEMPLATE Notizen","index":12,"n_rows":16,"n_cols":12,"rows_kept":16,"cut":false,"hidden":true,"merged":[[8,0,8,2],[8,3,8,6],[13,0,13,2],[13,3,13,4],[13,5,13,6],[10,0,10,2],[10,3,10,6],[12,0,12,2],[12,3,12,4],[12,5,12,6],[6,0,6,2],[6,3,6,6],[0,0,0,11],[2,0,2,2],[2,3,2,6],[4,0,4,2],[4,3,4,6]]}
["Zahlungsantrag - Notizen und Anmerkungen"]
[null,null,null,null,null,null,null,null,null,null,null,"RL/AMA v469.11 / Feb. 2019"]
["Betriebs-/Klientennummer: "]
[]
["Förderungswerber: "]
[]
["Antragsnummer: "]
[]
["Fördergegenstand: "]
[]
["Vorsteuerabzugsberechtigung: ",null,null,"Ja"]
[]
["Genehmigter Zeitraum für  ",null,null,"Beginn",null,"Ende"]
["Kostenanerkennung: "]
[]
["Hier ist Raum für freie Notizen, Anmerkungen und Nebenrechnungen…"]

{"sheet":"TABLE Gehaltsgrenzen","index":13,"n_rows":61,"n_cols":8,"rows_kept":61,"cut":false,"hidden":true,"merged":[]}
[2019,"[1] Beamten","[2] ASVG"]
["Jahr ","Dienstkl. VII/2","HöchstbeitragsGL"]
[2007,64120.14,53760,{"$f":"B3/14","v":4580.01},{"$f":"C3/14","v":3840}]
[2008,65829.600000000006,55020,4702.1142857142859,3930]
[2009,68166.820000000007,56280,4869.0585714285717,4020]
[2010,68858.89,57540,4918.4921428571424,4110]
[2011,69450,58800,4960.7142857142853,4200]
[2012,71290,59220,5092.1428571428569,4230]
[2013,71280,62160,5091.4285714285716,4440]
[2014,72380,63420,5170,4530]
[2015,73670,65100,5262.1428571428569,4650]
[2016,74870,68040,5347.8571428571431,4860]
[2017,77610,69720,5543.5714285714284,4980]
[2018,79320,71820,5665.7142857142853,5130]
[2019,81570,73080,5826.4285714285716,5220]
[2020,100000,80000,null,{"$f":"C16/14","v":5714.2857142857147}]
[2021,100000,80000,null,{"$f":"C17/14","v":5714.2857142857147}]
[2022,100000,80000,null,{"$f":"C18/14","v":5714.2857142857147}]
[2023,100000,80000,null,{"$f":"C19/14","v":5714.2857142857147}]
[]
["ACHTUNG: Wenn Daten für ein neues Jahr eingetragen werden, muss auch in Zelle A1 die Jahreszahl angepasst werden."]
["Sonst beschwert sich die Personalkostenaufstellung weiter über ungültige Höchstwerte."]
[]
["[1] Jahresbruttogehälter für Beamte der allgemeinen Verwaltung der Dienstklasse VII / Gehaltstufe 2 (lt. Gehaltsgesetz - GehG §118(5))"]
[null,"https://www.ris.bka.gv.at/NormDokument.wxe?Abfrage=Bundesnormen&Gesetzesnummer=10008163&FassungVom=2015-09-28&Paragraf=118"]
["Inkrafttretensdatum","Außerkrafttretensdatum",null,null,null,"12 Monate","14 Monate","Jahr/14Mon."]
["2007-01-01","2007-12-31",3065.4,null,2007,{"$f":"12*C27","v":36784.800000000003},{"$f":"F27*14/12","v":42915.600000000006},{"$f":"B3/G27","v":1.4940986494421606}]
["2008-01-01","2008-12-31",3148.2,null,2008,{"$f":"12*C28","v":37778.399999999994},44074.799999999988,1.4935881728334564]
["2009-01-01","2009-12-31",3260,null,2009,{"$f":"12*C29","v":39120},45640,1.4935762489044699]
["2010-01-01","2010-12-31",3293.3,null,2010,{"$f":"12*C30","v":39519.600000000006},46106.200000000012,1.4934843903856745]
["2011-01-01","2012-01-31",3321.3,null,2011,{"$f":"12*C31","v":39855.600000000006},46498.200000000012,1.4936062041111264]
["2012-02-01","2014-02-28",3417.4,null,2012,{"$f":"C31+11*C32","v":40912.700000000004},47731.483333333337,1.4935634726066547]
["2014-03-01","2015-02-11",3479.7,null,2013,{"$f":"12*C32","v":41008.800000000003},47843.600000000006,1.4898544423914586]
["2015-02-12",null,3479.7,null,2014,{"$f":"2*C32+10*C33","v":41631.800000000003},48570.433333333342,1.4902070052219696]
[null,null,null,null,2015,{"$f":"1.4*C33+10.6*C34","v":41756.400000000001},48715.799999999996,1.5122403819705312]
[null,null,null,null,2016]
[]
["Es ist unklar wie genau man von den im Gesetz aufgeführten Monatsgehältern zu den in der obigen Tabelle aufgeführten"]
["Jahresbruttogehältern kommt. Vermutlich muss man die passenden Dienstgeberbeiträge aufschlagen, aber wie genau…"]
["Näherungsweise passend wäre: 14 Monatsgehälter + Sozialversicherung Aufschlag = Jahresgehalt ?!?"]
[]
["[2] ASVG (Allgem. SozialVersicherungsGesetz) Höchstbeitragsgrundlage für die Berechnung der Beiträge zur Sozialversicherung"]
[null,"https://de.wikipedia.org/wiki/Höchstbeitragsgrundlage"]
[]
["Beitragsrechtliche Sätze 2016: (http://sozialversicherung.at --> ÜBER UNS --> Zahlen - Daten - Fakten / Aktuelle Werte)"]
[null,"https://www.sozialversicherung.at/portal27/sec/portal/esvportal/content/contentWindow?contentid=10008.626564&action=b&cacheability=PAGE&version=1450778169"]
[]
[2007]
[2008]
[2009]
[2010]
[2011]
[2012]
[2013]
[2014]
[2015]
[2016]
[]
["VO 640/2014 = Delegierte Verordnung (EU) Nr. 640/2014 der Kommission vom 11. März 2014 \n"]
["https://www.bmlfuw.gv.at/dam/jcr:05e477c3-6d14-412a-beb1-93380de11239/640_2014.pdf"]
["http://eur-lex.europa.eu/legal-content/de/ALL/?uri=CELEX%3A32014R0640"]